Workbook

Sheet Лимиты ГФ1
B1: млн теңге
B2: № | C2: ЕДБ/ЗТ атауы | D2: Қор қаражаты есебінен лимит | E2: Банк жарналарының фактісі | F2: ЕДБ қаражаты есебінен лимит | G2: Қордың+ЕДБ жалпы лимиті | H2: Игерілді | I2: Лимиттің қалдығы
B3: 1 | C3: Қазақстан Халық Банкі | D3: 57000 | E3: 4300 | F3: 43000 | G3: 100000 | H3: 99972.16173 | I3: =G3-H3 -> 27.83826836
B4: 2 | C4: Центркредит Банкі | D4: 54682.9117 | E4: 5131.70883 | F4: 51317.0883 | G4: 106000 | H4: 88258.449 | I4: =G4-H4 -> 17741.551
B5: 3 | C5: Fortebank | D5: 33421.87355 | E5: 1842.18736 | F5: 18421.87355 | G5: 51843.7471 | H5: 42462.01285 | I5: 9381.73425
B6: 4 | C6: Bank RBK | D6: 15000 | E6: 500 | F6: 5000 | G6: 20000 | H6: 8277.208604 | I6: 11722.7914
B7: 5 | C7: Bereke bank | D7: 20500 | E7: 750 | F7: 7500 | G7: 28000 | H7: 19420.62221 | I7: 8579.377793
B8: 6 | C8: Фридом Банк Қазақстан | D8: 15000 | E8: 537 | F8: 5370 | G8: 20370 | H8: 19532.64079 | I8: 837.3592144
B9: 7 | C9: Alatau city bank | D9: 10000 | E9: 200 | F9: 2000 | G9: 12000 | H9: 10326.39525 | I9: 1673.604749
B10: 8 | C10: Еуразиялық Банк | D10: 10000 | E10: 576 | F10: 5760 | G10: 15760 | H10: 12499.95841 | I10: 3260.041587
B11: 9 | C11: Нұрбанк | D11: 7696.019238 | E11: 574.4987042 | F11: 5744.987042 | G11: 13441.00628 | H11: 11230.10658 | I11: 2210.899697
B12: 10 | C12: Ислам банкі ADCB | D12: 6000 | E12: 360 | F12: 3600 | G12: 9600 | H12: 8600 | I12: 1000
B13: 11 | C13: BNK Bank | D13: 200 | E13: 20 | F13: 200 | G13: 400 | H13: 0 | I13: 400
B14: 12 | C14: Аграрлық несие корпорациясы | D14: 34366.207 | E14: 3436.621 | F14: 34366.207 | G14: 68732.414 | H14: 1900 | I14: 66832.414
B15: 13 | C15: Өнеркәсіпті дамыту қоры | D15: 10000 | E15: 1000 | F15: 10000 | G15: 20000 | H15: 3585.326177 | I15: 16414.67382
B16: Барлығы | D16: =SUM(D3:D15) -> 273867.0115 | E16: =SUM(E3:E15) -> 19228.01589 | F16: 192280.1559 | G16: 466147.1674 | H16: 326064.8816 | I16: 140082.2858

Sheet Аналитика ГФ1 и ГФ2
E1: Кепілдендіру бағдарламаларының аналитикасы- 1 және 2 кепілдік қоры, млн т | I1: Кредиторлар бөлінісінде

Sheet Лист3 (hidden)
B2: Бағдарлама | C2: Саны | D2: Несие сомасы, млн т | E2: Кепілдік сомасы, млн т
B3: МҚ 1 шеңберінде кепілдендіру | C3: 3627 | D3: 5.961415135e+11 | E3: 3.260648816e+11
B4: Жалпы қорытынды | C4: 3627 | D4: 5.961415135e+11 | E4: 3.260648816e+11

Sheet Лист1 (hidden)
A3: Жолдардың атаулары | B3: Өріс бойынша сома Кредит сомасы
A4: 2025 | B4: 5.092131959e+11
A5: сәу | B5: 19257301400
A6: мамыр | B6: 3.30915192e+10
A7: маусым | B7: 47195106698
A8: шілде | B8: 61056177464
A9: тамыз | B9: 45003849517
A10: қыркүйек | B10: 5.96581301e+10
A11: қазан | B11: 6.828926137e+10
A12: қараша | B12: 6.423584972e+10
A13: желтоқсан | B13: 1.114260005e+11
A14: 2026 | B14: 8.692831759e+10
A15: қаңтар | B15: 2.089739764e+10
A16: ақпан | B16: 28939536778
A17: наурыз | B17: 37091383180
A18: Жалпы қорытынды | B18: 5.961415135e+11
B20: =GETPIVOTDATA("Сумма кредита",$A$3)/1000000 -> 596141.5135
A22: Жолдардың атаулары | B22: Өріс бойынша саны Кредит сомасы
A23: 2025 | B23: 3104
A24: сәу | B24: 169
A25: мамыр | B25: 285
A26: маусым | B26: 283
A27: шілде | B27: 273
A28: тамыз | B28: 279
A29: қыркүйек | B29: 244
A30: қазан | B30: 359
A31: қараша | B31: 325
A32: желтоқсан | B32: 887
A33: 2026 | B33: 523
A34: қаңтар | B34: 140
A35: ақпан | B35: 175
A36: наурыз | B36: 208
A37: Жалпы қорытынды | B37: 3627
B39: =GETPIVOTDATA("Сумма кредита",$A$22) -> 3627
A42: Жолдардың атаулары | B42: Өріс бойынша сома Кепілдік сомасы
A43: 2025 | B43: 2.825321199e+11
A44: сәу | B44: 9122223620
A45: мамыр | B45: 1.765590768e+10
A46: маусым | B46: 2.832981196e+10
A47: шілде | B47: 31453884323
A48: тамыз | B48: 25429130795
A49: қыркүйек | B49: 3.303366625e+10
A50: қазан | B50: 3.931314796e+10
A51: қараша | B51: 3.797944163e+10
A52: желтоқсан | B52: 6.021490566e+10
A53: 2026 | B53: 4.353276172e+10
A54: қаңтар | B54: 1.123279466e+10
A55: ақпан | B55: 1.501725167e+10
A56: наурыз | B56: 17282715380
A57: Жалпы қорытынды | B57: 3.260648816e+11
B59: =GETPIVOTDATA("Сумма гарантии",$A$42)/1000000 -> 326064.8816
A65: Жолдардың атаулары | B65: Өріс бойынша сома Кредит сомасы | E65: Өңір | F65: Көрсеткіш | G65: X | H65: Y | I65: қолтаңбалар | J65: Максимум
A66: Ақмола облысы | B66: 2.439219903e+10 | E66: Ақмола облысы | F66: =VLOOKUP(Таблица22[[#This Row],[Регион]],A$66:B$85,2,0) -> 2.439219903e+10 | G66: 52 | H66: 70 | I66: =Таблица22[[#This Row],[Регион]] & CHAR(10) & TEXT(Таблица22[[#This Row],[Показатель]],"# ##0 "" млн т""") -> Акмолинская область 24 392 млн т | J66: =IF(Таблица22[[#This Row],[Показатель]]=MAX(Таблица22[Показатель]),Таблица22[[#This Row],[подписи]],"") -> 
A67: Ақтөбе облысы | B67: 3.480999056e+10 | E67: Ақтөбе облысы | F67: =VLOOKUP(Таблица22[[#This Row],[Регион]],A$66:B$85,2,0) -> 3.480999056e+10 | G67: 30 | H67: 50 | I67: =Таблица22[[#This Row],[Регион]] & CHAR(10) & TEXT(Таблица22[[#This Row],[Показатель]],"# ##0 "" млн т""") -> Актюбинская область 34 810 млн т | J67: =IF(Таблица22[[#This Row],[Показатель]]=MAX(Таблица22[Показатель]),Таблица22[[#This Row],[подписи]],"") -> 
A68: Алматы облысы | B68: 44487078000 | E68: Алматы облысы | F68: =VLOOKUP(Таблица22[[#This Row],[Регион]],A$66:B$85,2,0) -> 44487078000 | G68: 73 | H68: 30 | I68: =Таблица22[[#This Row],[Регион]] & CHAR(10) & TEXT(Таблица22[[#This Row],[Показатель]],"# ##0 "" млн т""") -> Алматинская область 44 487 млн т | J68: =IF(Таблица22[[#This Row],[Показатель]]=MAX(Таблица22[Показатель]),Таблица22[[#This Row],[подписи]],"") -> 
A69: Атырау облысы | B69: 28639945965 | E69: Атырау облысы | F69: =VLOOKUP(Таблица22[[#This Row],[Регион]],A$66:B$85,2,0) -> 28639945965 | G69: 10 | H69: 45 | I69: =Таблица22[[#This Row],[Регион]] & CHAR(10) & TEXT(Таблица22[[#This Row],[Показатель]],"# ##0 "" млн т""") -> Атырауская область 28 640 млн т | J69: =IF(Таблица22[[#This Row],[Показатель]]=MAX(Таблица22[Показатель]),Таблица22[[#This Row],[подписи]],"") -> 
A70: Шығыс Қазақстан облысы | B70: 19197393781 | E70: Шығыс Қазақстан облысы | F70: =VLOOKUP(Таблица22[[#This Row],[Регион]],A$66:B$85,2,0) -> 19197393781 | G70: 90 | H70: 60 | I70: =Таблица22[[#This Row],[Регион]] & CHAR(10) & TEXT(Таблица22[[#This Row],[Показатель]],"# ##0 "" млн т""") -> Восточно-Казахстанская область 19 197 млн т | J70: =IF(Таблица22[[#This Row],[Показатель]]=MAX(Таблица22[Показатель]),Таблица22[[#This Row],[подписи]],"") -> 
A71: Алматы қ. | B71: 80313515517 | E71: Алматы қ. | F71: =VLOOKUP(Таблица22[[#This Row],[Регион]],A$66:B$85,2,0) -> 80313515517 | G71: 78 | H71: 20 | I71: =Таблица22[[#This Row],[Регион]] & CHAR(10) & TEXT(Таблица22[[#This Row],[Показатель]],"# ##0 "" млн т""") -> г.Алматы 80 314 млн т | J71: =IF(Таблица22[[#This Row],[Показатель]]=MAX(Таблица22[Показатель]),Таблица22[[#This Row],[подписи]],"") -> 
A72: Астана қ. | B72: 9.73072181e+10 | E72: Астана қ. | F72: =VLOOKUP(Таблица22[[#This Row],[Регион]],A$66:B$85,2,0) -> 9.73072181e+10 | G72: 60 | H72: 65 | I72: =Таблица22[[#This Row],[Регион]] & CHAR(10) & TEXT(Таблица22[[#This Row],[Показатель]],"# ##0 "" млн т""") -> г.Астана 97 307 млн т | J72: =IF(Таблица22[[#This Row],[Показатель]]=MAX(Таблица22[Показатель]),Таблица22[[#This Row],[подписи]],"") -> г.Астана 97 307 млн т
A73: Шымкент қ. | B73: 2.650929745e+10 | E73: Шымкент қ. | F73: =VLOOKUP(Таблица22[[#This Row],[Регион]],A$66:B$85,2,0) -> 2.650929745e+10 | G73: 55 | H73: 10 | I73: =Таблица22[[#This Row],[Регион]] & CHAR(10) & TEXT(Таблица22[[#This Row],[Показатель]],"# ##0 "" млн т""") -> г.Шымкент 26 509 млн т | J73: =IF(Таблица22[[#This Row],[Показатель]]=MAX(Таблица22[Показатель]),Таблица22[[#This Row],[подписи]],"") -> 
A74: Жамбыл облысы | B74: 20603423000 | E74: Жамбыл облысы | F74: =VLOOKUP(Таблица22[[#This Row],[Регион]],A$66:B$85,2,0) -> 20603423000 | G74: 65 | H74: 20 | I74: =Таблица22[[#This Row],[Регион]] & CHAR(10) & TEXT(Таблица22[[#This Row],[Показатель]],"# ##0 "" млн т""") -> Жамбылская область 20 603 млн т | J74: =IF(Таблица22[[#This Row],[Показатель]]=MAX(Таблица22[Показатель]),Таблица22[[#This Row],[подписи]],"") -> 
A75: Батыс Қазақстан облысы | B75: 1.898747735e+10 | E75: Батыс Қазақстан облысы | F75: =VLOOKUP(Таблица22[[#This Row],[Регион]],A$66:B$85,2,0) -> 1.898747735e+10 | G75: 10 | H75: 70 | I75: =Таблица22[[#This Row],[Регион]] & CHAR(10) & TEXT(Таблица22[[#This Row],[Показатель]],"# ##0 "" млн т""") -> Западно-Казахстанская область 18 987 млн т | J75: =IF(Таблица22[[#This Row],[Показатель]]=MAX(Таблица22[Показатель]),Таблица22[[#This Row],[подписи]],"") -> 
A76: Қарағанды облысы | B76: 21950674334 | E76: Қарағанды облысы | F76: =VLOOKUP(Таблица22[[#This Row],[Регион]],A$66:B$85,2,0) -> 21950674334 | G76: 65 | H76: 55 | I76: =Таблица22[[#This Row],[Регион]] & CHAR(10) & TEXT(Таблица22[[#This Row],[Показатель]],"# ##0 "" млн т""") -> Карагандинская область 21 951 млн т | J76: =IF(Таблица22[[#This Row],[Показатель]]=MAX(Таблица22[Показатель]),Таблица22[[#This Row],[подписи]],"") -> 
A77: Қостанай облысы | B77: 43924542236 | E77: Қостанай облысы | F77: =VLOOKUP(Таблица22[[#This Row],[Регион]],A$66:B$85,2,0) -> 43924542236 | G77: 43 | H77: 80 | I77: =Таблица22[[#This Row],[Регион]] & CHAR(10) & TEXT(Таблица22[[#This Row],[Показатель]],"# ##0 "" млн т""") -> Костанайская область 43 925 млн т | J77: =IF(Таблица22[[#This Row],[Показатель]]=MAX(Таблица22[Показатель]),Таблица22[[#This Row],[подписи]],"") -> 
A78: Қызылорда облысы | B78: 13678577933 | E78: Қызылорда облысы | F78: =VLOOKUP(Таблица22[[#This Row],[Регион]],A$66:B$85,2,0) -> 13678577933 | G78: 40 | H78: 20 | I78: =Таблица22[[#This Row],[Регион]] & CHAR(10) & TEXT(Таблица22[[#This Row],[Показатель]],"# ##0 "" млн т""") -> Кызылординская область 13 679 млн т | J78: =IF(Таблица22[[#This Row],[Показатель]]=MAX(Таблица22[Показатель]),Таблица22[[#This Row],[подписи]],"") -> 
A79: Маңғыстау облысы | B79: 2.712060947e+10 | E79: Маңғыстау облысы | F79: =VLOOKUP(Таблица22[[#This Row],[Регион]],A$66:B$85,2,0) -> 2.712060947e+10 | G79: 20 | H79: 20 | I79: =Таблица22[[#This Row],[Регион]] & CHAR(10) & TEXT(Таблица22[[#This Row],[Показатель]],"# ##0 "" млн т""") -> Мангистауская область 27 121 млн т | J79: =IF(Таблица22[[#This Row],[Показатель]]=MAX(Таблица22[Показатель]),Таблица22[[#This Row],[подписи]],"") -> 
A80: Абай облысы | B80: 1.847948486e+10 | E80: Абай облысы | F80: =VLOOKUP(Таблица22[[#This Row],[Регион]],A$66:B$85,2,0) -> 1.847948486e+10 | G80: 85 | H80: 50 | I80: =Таблица22[[#This Row],[Регион]] & CHAR(10) & TEXT(Таблица22[[#This Row],[Показатель]],"# ##0 "" млн т""") -> Область Абай 18 479 млн т | J80: =IF(Таблица22[[#This Row],[Показатель]]=MAX(Таблица22[Показатель]),Таблица22[[#This Row],[подписи]],"") -> 
A81: Область Жетiсу | B81: 9376101184 | E81: Область Жетiсу | F81: =VLOOKUP(Таблица22[[#This Row],[Регион]],A$66:B$85,2,0) -> 9376101184 | G81: 83 | H81: 35 | I81: =Таблица22[[#This Row],[Регион]] & CHAR(10) & TEXT(Таблица22[[#This Row],[Показатель]],"# ##0 "" млн т""") -> Область Жетiсу 9 376 млн т | J81: =IF(Таблица22[[#This Row],[Показатель]]=MAX(Таблица22[Показатель]),Таблица22[[#This Row],[подписи]],"") -> 
A82: Ұлытау облысы | B82: 3901023600 | E82: Ұлытау облысы | F82: =VLOOKUP(Таблица22[[#This Row],[Регион]],A$66:B$85,2,0) -> 3901023600 | G82: 60 | H82: 40 | I82: =Таблица22[[#This Row],[Регион]] & CHAR(10) & TEXT(Таблица22[[#This Row],[Показатель]],"# ##0 "" млн т""") -> Область Улытау 3 901 млн т | J82: =IF(Таблица22[[#This Row],[Показатель]]=MAX(Таблица22[Показатель]),Таблица22[[#This Row],[подписи]],"") -> 
A83: Павлодар облысы | B83: 30523312947 | E83: Павлодар облысы | F83: =VLOOKUP(Таблица22[[#This Row],[Регион]],A$66:B$85,2,0) -> 30523312947 | G83: 75 | H83: 75 | I83: =Таблица22[[#This Row],[Регион]] & CHAR(10) & TEXT(Таблица22[[#This Row],[Показатель]],"# ##0 "" млн т""") -> Павлодарская область 30 523 млн т | J83: =IF(Таблица22[[#This Row],[Показатель]]=MAX(Таблица22[Показатель]),Таблица22[[#This Row],[подписи]],"") -> 
A84: Солтүстік Қазақстан облысы | B84: 10677175320 | E84: Солтүстік Қазақстан облысы | F84: =VLOOKUP(Таблица22[[#This Row],[Регион]],A$66:B$85,2,0) -> 10677175320 | G84: 55 | H84: 95 | I84: =Таблица22[[#This Row],[Регион]] & CHAR(10) & TEXT(Таблица22[[#This Row],[Показатель]],"# ##0 "" млн т""") -> Северо-Казахстанская область 10 677 млн т | J84: =IF(Таблица22[[#This Row],[Показатель]]=MAX(Таблица22[Показатель]),Таблица22[[#This Row],[подписи]],"") -> 
A85: Түркістан облысы | B85: 21262472899 | E85: Түркістан облысы | F85: =VLOOKUP(Таблица22[[#This Row],[Регион]],A$66:B$85,2,0) -> 21262472899 | G85: 55 | H85: 25 | I85: =Таблица22[[#This Row],[Регион]] & CHAR(10) & TEXT(Таблица22[[#This Row],[Показатель]],"# ##0 "" млн т""") -> Туркестанская область 21 262 млн т | J85: =IF(Таблица22[[#This Row],[Показатель]]=MAX(Таблица22[Показатель]),Таблица22[[#This Row],[подписи]],"") -> 
A86: Жалпы қорытынды | B86: 5.961415135e+11
A92: Жолдардың атаулары | B92: Саны
A93: C-Өңдеуші өнеркәсіп | B93: 1123
A94: Н-Тасымалдау және қоймалау | B94: 838
A95: G-Көтерме және бөлшек сауда; автомобильдер мен мотоциклдерді жөндеу | B95: 544
A96: I-Тұру және тамақтану бойынша қызметтер көрсету | B96: 261
A97: P-Білім беру | B97: 231
A98: Q-Денсаулық сақтау және халыққа әлеуметтік қызмет көрсету | B98: 143
A99: L-Жылжымайтын мүлікпен жасалатын операциялар | B99: 113
A100: F-Құрылыс | B100: 101
A101: А-Ауыл, орман және балық шаруашылығы | B101: 89
A102: S-Өзге де қызмет түрлерін ұсыну | B102: 42
A103: R-Өнер, ойын-сауық және демалыс | B103: 40
A104: N-Әкімшілік және қосалқы қызмет көрсету саласындағы қызмет | B104: 35
A105: M-Кәсіби, ғылыми және техникалық қызмет | B105: 25
A106: J-Ақпарат және байланыс | B106: 14
A107: B-Тау-кен өндіру өнеркәсібі және карьерлерді қазу | B107: 13
A108: E-Сумен жабдықтау; қалдықтарды жинау, өңдеу және жою, ластануды жою жөніндегі қызмет | B108: 11
A109: D-Электр энергиясымен, газбен, бумен, ыстық сумен және кондиционерленген ауамен қамтамасыз ету | B109: 4
A110: Жалпы қорытынды | B110: 3627
A115: Жолдардың атаулары | B115: Кредит сомасы
A116: C-Өңдеуші өнеркәсіп | B116: 2.38183558e+11
A117: G-Көтерме және бөлшек сауда; автомобильдер мен мотоциклдерді жөндеу | B117: 7.884911727e+10
A118: Н-Тасымалдау және қоймалау | B118: 7.033876339e+10
A119: I-Тұру және тамақтану бойынша қызметтер көрсету | B119: 4.713080283e+10
A120: F-Құрылыс | B120: 32976785289
A121: P-Білім беру | B121: 28604872320
A122: Q-Денсаулық сақтау және халыққа әлеуметтік қызмет көрсету | B122: 2.847185476e+10
A123: L-Жылжымайтын мүлікпен жасалатын операциялар | B123: 21828200890
A124: B-Тау-кен өндіру өнеркәсібі және карьерлерді қазу | B124: 11468334000
A125: А-Ауыл, орман және балық шаруашылығы | B125: 10130561100
A126: R-Өнер, ойын-сауық және демалыс | B126: 5879687974
A127: J-Ақпарат және байланыс | B127: 5009400000
A128: N-Әкімшілік және қосалқы қызмет көрсету саласындағы қызмет | B128: 4901070000
A129: E-Сумен жабдықтау; қалдықтарды жинау, өңдеу және жою, ластануды жою жөніндегі қызмет | B129: 4507100000
A130: M-Кәсіби, ғылыми және техникалық қызмет | B130: 3694235320
A131: S-Өзге де қызмет түрлерін ұсыну | B131: 3112166888
A132: D-Электр энергиясымен, газбен, бумен, ыстық сумен және кондиционерленген ауамен қамтамасыз ету | B132: 1055003474
A133: Жалпы қорытынды | B133: 5.961415135e+11
A140: Жолдардың атаулары | B140: Кепілдік сомасы
A141: C-Өңдеуші өнеркәсіп | B141: 1.342568345e+11
A142: G-Көтерме және бөлшек сауда; автомобильдер мен мотоциклдерді жөндеу | B142: 4.406861029e+10
A143: Н-Тасымалдау және қоймалау | B143: 4.073668108e+10
A144: I-Тұру және тамақтану бойынша қызметтер көрсету | B144: 2.517805583e+10
A145: F-Құрылыс | B145: 1.624790655e+10
A146: Q-Денсаулық сақтау және халыққа әлеуметтік қызмет көрсету | B146: 15711128837
A147: P-Білім беру | B147: 1.171023236e+10
A148: L-Жылжымайтын мүлікпен жасалатын операциялар | B148: 9176989571
A149: B-Тау-кен өндіру өнеркәсібі және карьерлерді қазу | B149: 6421238160
A150: А-Ауыл, орман және балық шаруашылығы | B150: 5776235712
A151: R-Өнер, ойын-сауық және демалыс | B151: 3715378864
A152: J-Ақпарат және байланыс | B152: 3675138515
A153: E-Сумен жабдықтау; қалдықтарды жинау, өңдеу және жою, ластануды жою жөніндегі қызмет | B153: 3116904700
A154: N-Әкімшілік және қосалқы қызмет көрсету саласындағы қызмет | B154: 2335097727
A155: M-Кәсіби, ғылыми және техникалық қызмет | B155: 1795564122
A156: S-Өзге де қызмет түрлерін ұсыну | B156: 1573857752
A157: D-Электр энергиясымен, газбен, бумен, ыстық сумен және кондиционерленген ауамен қамтамасыз ету | B157: 569027010
A158: Жалпы қорытынды | B158: 3.260648816e+11
A164: Жолдардың атаулары | B164: Кредитор өрісі бойынша саны
A165: "Банк ЦентрКредит" АҚ | B165: 1629
A166: "Қазақстан Халық Банкі" АҚ | B166: 831
A167: "Алатау қалалық банкі" АҚ | B167: 364
A168: "ForteBank" АҚ | B168: 358
A169: "Нұрбанк" АҚ | B169: 122
A170: "Еуразиялық банк" АҚ | B170: 122
A171: "Bereke Bank" АҚ (еншілес банк Lesha Bank LLC (Public)) | B171: 112
A172: "Банк"Bank RBK" АҚ | B172: 48
A173: "Фридом Банк Қазақстан" АҚ | B173: 31
A174: "Өнеркәсіпті дамыту қоры" АҚ (бұрынғы ҚДБ-Лизинг) | B174: 4
A175: "ADCB" Ислам Банкі" АҚ | B175: 3
A176: Аграрлық несие корпорациясы | B176: 3
A177: Жалпы қорытынды | B177: 3627
A183: Жолдардың атаулары | B183: Өріс бойынша сома Кредит сомасы
A184: "Банк ЦентрКредит" АҚ | B184: 1.866087546e+11
A185: "Қазақстан Халық Банкі" АҚ | B185: 1.846812459e+11
A186: "ForteBank" АҚ | B186: 7.349249354e+10
A187: "Bereke Bank" АҚ (еншілес банк Lesha Bank LLC (Public)) | B187: 34084221200
A188: "Фридом Банк Қазақстан" АҚ | B188: 28543504000
A189: "Нұрбанк" АҚ | B189: 2.008094083e+10
A190: "Еуразиялық банк" АҚ | B190: 19192613003
A191: "Алатау қалалық банкі" АҚ | B191: 1.683353295e+10
A192: "Банк"Bank RBK" АҚ | B192: 1.327030158e+10
A193: "ADCB" Ислам Банкі" АҚ | B193: 11995576000
A194: "Өнеркәсіпті дамыту қоры" АҚ (бұрынғы ҚДБ-Лизинг) | B194: 4858329965
A195: Аграрлық несие корпорациясы | B195: 2500000000
A196: Жалпы қорытынды | B196: 5.961415135e+11
A202: Жолдардың атаулары | B202: Өріс бойынша сома Кепілдік сомасы
A203: "Қазақстан Халық Банкі" АҚ | B203: 9.997216173e+10
A204: "Банк ЦентрКредит" АҚ | B204: 8.8258449e+10
A205: "ForteBank" АҚ | B205: 42462012850
A206: "Фридом Банк Қазақстан" АҚ | B206: 1.953264079e+10
A207: "Bereke Bank" АҚ (еншілес банк Lesha Bank LLC (Public)) | B207: 19420622207
A208: "Еуразиялық банк" АҚ | B208: 12499958413
A209: "Нұрбанк" АҚ | B209: 11230106583
A210: "Алатау қалалық банкі" АҚ | B210: 1.032639525e+10
A211: "ADCB" Ислам Банкі" АҚ | B211: 8600000000
A212: "Банк"Bank RBK" АҚ | B212: 8277208604
A213: "Өнеркәсіпті дамыту қоры" АҚ (бұрынғы ҚДБ-Лизинг) | B213: 3585326177
A214: Аграрлық несие корпорациясы | B214: 1900000000
A215: Жалпы қорытынды | B215: 3.260648816e+11
A219: Жолдардың атаулары | B219: Субъективтілік өрісі бойынша саны
A220: Ірі кәсіпкерлік | B220: 36
A221: Орта кәсіпкерлік | B221: 379
A222: Шағын кәсіпкерлік | B222: 737
A223: Микро кәсіпкерлік | B223: 2475
A224: Жалпы қорытынды | B224: 3627
A226: ="Микро-малое"&" "& GETPIVOTDATA("Субъектность",$A$219) -> Микро-малое 3627
A230: Жолдардың атаулары | B230: Өріс бойынша сома Кредит сомасы | C230: Өріс бойынша сома Кредит сомасы2
A231: Ірі кәсіпкерлік | B231: 39943160000 | C231: 0.06700281576
A232: Орта кәсіпкерлік | B232: 202915475563 | C232: 0.3403813876
A233: Шағын кәсіпкерлік | B233: 1.220408021e+11 | C233: 0.2047178386
A234: Микро кәсіпкерлік | B234: 2.312420758e+11 | C234: 0.3878979581
A235: Жалпы қорытынды | B235: 5.961415135e+11 | C235: 1
A241: Жолдардың атаулары | B241: Өріс бойынша сома Кепілдік сомасы
A242: Ірі кәсіпкерлік | B242: 25454145732
A243: Орта кәсіпкерлік | B243: 1.158799834e+11
A244: Шағын кәсіпкерлік | B244: 6.523266132e+10
A245: Микро кәсіпкерлік | B245: 1.194980912e+11
A246: Жалпы қорытынды | B246: 3.260648816e+11
A253: Жолдардың атаулары | B253: Өріс бойынша саны Кредиттеу мақсаты
A254: Инвестициялар | B254: 2560
A255: Айналым қаражатын толықтыру | B255: 948
A256: Қайта қаржыландыру | B256: 42
A257: Инвестициялар және Айналым қаражатын толықтыру | B257: 13
A258: Қайта қаржыландыру және Инвестициялар | B258: 9
A259: Айналым қаражатын қайта қаржыландыру және толықтыру | B259: 55
A260: Жалпы қорытынды | B260: 3627
A267: Жолдардың атаулары | B267: Өріс бойынша сома Кредит сомасы
... 15 more rows

Sheet База-отчет ГФ1 и ГФ2
A1: МӨЗ | B1: Атауы | C1: Несиелендірудің мақсаты | D1: Атауы | E1: Сала | F1: Кіші сала | G1: Несие беруші | H1: Кредит сомасы | I1: Кепілдік сомасы | J1: Кәсіпкердің жүгінген орны | K1: Жобаны іске асыратын қала/аудан | L1: Жобаны іске асыру саласы | M1: Субъективтілік | N1: Бағдарлама | O1: Кезең
A2: ЖК | B2: Фазылов в лице ФАЗЫЛОВА ҚУАНЫША БАУЫРЖАНҰЛЫ | C2: Инвестициялар | D2: Автокөліктерге техникалық қызмет көрсету және жөндеу саласындағы бизнесті кеңейту | E2: G-Көтерме және бөлшек сауда; автомобильдер мен мотоциклдерді жөндеу | F2: 45201-Жол бойындағы жолақта орналасқан техникалық қызмет көрсету станциялары жүргізетіндерді қоспағанда, автокөліктерге техникалық қызмет көрсету және жөндеу | G2: "Алатау қалалық банкі" АҚ | H2: 80000000 | I2: 51461700 | J2: Абай облысы бойынша РФ | K2: Семей қ. | L2: Абай облысы | M2: Микро кәсіпкерлік | N2: МҚ 1 шеңберінде кепілдендіру | O2: 45929.2523
A3: ЖШС | B3: ZHANDENT | C3: Инвестициялар | D3: Медициналық қызметті кеңейту | E3: Q-Денсаулық сақтау және халыққа әлеуметтік қызмет көрсету | F3: 86230-Стоматологиялық қызмет | G3: "Банк ЦентрКредит" АҚ | H3: 50000000 | I3: 25000000 | J3: Абай облысы бойынша РФ | K3: Семей қ. | L3: Абай облысы | M3: Шағын кәсіпкерлік | N3: МҚ 1 шеңберінде кепілдендіру | O3: 45931.25707
A4: ЖК | B4: Гайнулина Эльмира Самигуллақызы | C4: Айналым қаражатын толықтыру | D4: Сауда саласындағы бизнесті кеңейту | E4: G-Көтерме және бөлшек сауда; автомобильдер мен мотоциклдерді жөндеу | F4: 46909-Қандай да бір нақтылаусыз тауарлардың кең ассортиментін көтерме саудада сату | G4: "Еуразиялық банк" АҚ | H4: 40000000 | I4: 34000000 | J4: Абай облысы бойынша РФ | K4: Семей қ. | L4: Абай облысы | M4: Шағын кәсіпкерлік | N4: МҚ 1 шеңберінде кепілдендіру | O4: 46001.25697
A5: ЖШС | B5: Kazakhstan Buildings-I | C5: Инвестициялар | D5: Тауарлы бетон өндірісі бойынша қызметті ұйымдастыру | E5: C-Өңдеуші өнеркәсіп | F5: 23630-Тауарлы бетон өндірісі | G5: "Қазақстан Халық Банкі" АҚ | H5: 580000000 | I5: 449717260 | J5: Абай облысы бойынша РФ | K5: район Жаңасемей | L5: Абай облысы | M5: Орта кәсіпкерлік | N5: МҚ 1 шеңберінде кепілдендіру | O5: 46017.48273
A6: ЖШС | B6: Kazakhstan Buildings-I | C6: Айналым қаражатын толықтыру | D6: Ағымдағы қызметті кеңейту | E6: C-Өңдеуші өнеркәсіп | F6: 23630-Тауарлы бетон өндірісі | G6: "Қазақстан Халық Банкі" АҚ | H6: 60000000 | I6: 46000000 | J6: Абай облысы бойынша РФ | K6: Семей қ. | L6: Абай облысы | M6: Орта кәсіпкерлік | N6: МҚ 1 шеңберінде кепілдендіру | O6: 46017.48336
A7: ЖК | B7: Заңғар Тәкішов Сейітжан Бейсенұлының тұлғасында | C7: Инвестициялар | D7: Жүк тасымалы саласындағы қызметті кеңейту | E7: Н-Тасымалдау және қоймалау | F7: 49410-Жүк автомобиль көлігінің қызметі | G7: "Банк ЦентрКредит" АҚ | H7: 25000000 | I7: 12461753.33 | J7: Абай облысы бойынша РФ | K7: Семей қ. | L7: Абай облысы | M7: Микро кәсіпкерлік | N7: МҚ 1 шеңберінде кепілдендіру | O7: 45764.20833
A8: ЖК | B8: Абаев Д.А. атынан Абаев Дастан Абайұлы | C8: Айналым қаражатын толықтыру | D8: Наубайхана қызметін кеңейту | E8: C-Өңдеуші өнеркәсіп | F8: 10710- Қысқа мерзімді сақтауға арналған нан-тоқаш және ұннан жасалған кондитерлік өнімдер өндірісі | G8: "Банк ЦентрКредит" АҚ | H8: 30000000 | I8: 25500000 | J8: Абай облысы бойынша РФ | K8: Үржар ауданы | L8: Абай облысы | M8: Микро кәсіпкерлік | N8: МҚ 1 шеңберінде кепілдендіру | O8: 45765.40082
A9: ЖК | B9: Төлеуханов Арман Нұриұлы Төлеуханов тұлғасында | C9: Инвестициялар | D9: Жылжымайтын мүлікті сатып алу, жөндеу/реконструкциялау және қонақүй қызметін ұйымдастыру үшін негізгі құралдарды сатып алу | E9: I-Тұру және тамақтану бойынша қызметтер көрсету | F9: 55101-Жол бойындағы жолақта орналасқан қонақүйлерді қоспағанда, мейрамханалары бар қонақүйлердің қызмет көрсетуі | G9: "Қазақстан Халық Банкі" АҚ | H9: 500000000 | I9: 199570500 | J9: Абай облысы бойынша РФ | K9: Семей қ. | L9: Абай облысы | M9: Шағын кәсіпкерлік | N9: МҚ 1 шеңберінде кепілдендіру | O9: 45768.4549
A10: ЖК | B10: ЕРЕЖЕББАЕВА СӘУЛЕ ТҰРСЫНХАНҚЫЗЫ ұсынған ZHAKAN Logistics | C10: Инвестициялар | D10: Жүк тасымалы саласындағы қызметті кеңейту | E10: Н-Тасымалдау және қоймалау | F10: 49410-Жүк автомобиль көлігінің қызметі | G10: "Банк ЦентрКредит" АҚ | H10: 120000000 | I10: 40000000 | J10: Абай облысы бойынша РФ | K10: Семей қ. | L10: Абай облысы | M10: Микро кәсіпкерлік | N10: МҚ 1 шеңберінде кепілдендіру | O10: 45776.1862
A11: ЖК | B11: Injir в лице ЖҰМАБАЕВОЙ АЙГЕРІМ ЕРКІНҚЫЗЫ | C11: Инвестициялар | D11: Қоғамдық тамақтандыру саласындағы қызметті ұйымдастыру | E11: I-Тұру және тамақтану бойынша қызметтер көрсету | F11: 56101-Мейрамханалардың қызметі және жол бойындағы жолақта орналасқан объектілердің қызметін қоспағанда, тамақ өнімдерін жеткізу бойынша қызметтерді ұсыну | G11: "Банк ЦентрКредит" АҚ | H11: 20000000 | I11: 6000000 | J11: Абай облысы бойынша РФ | K11: Семей қ. | L11: Абай облысы | M11: Микро кәсіпкерлік | N11: МҚ 1 шеңберінде кепілдендіру | O11: 45776.18615
A12: ЖШС | B12: Q4Tulpar_Atyrau | C12: Инвестициялар | D12: Монша кешеніндегі коммерциялық үй-жайларды жөндеу және қайта құру | E12: G-Көтерме және бөлшек сауда; автомобильдер мен мотоциклдерді жөндеу | F12: 46140-Машиналарды, жабдықтарды, кемелер мен әуе кемелерін көтерме сату агенттерінің қызметі | G12: "Банк ЦентрКредит" АҚ | H12: 300000000 | I12: 139800000 | J12: Абай облысы бойынша РФ | K12: Үржар ауданы | L12: Абай облысы | M12: Микро кәсіпкерлік | N12: МҚ 1 шеңберінде кепілдендіру | O12: 45782.51473
A13: ЖК | B13: Ақылбеков Дәулет Үсенұлы | C13: Айналым қаражатын толықтыру | D13: Металл конструкцияларын өндіру саласындағы өндірісті кеңейту | E13: C-Өңдеуші өнеркәсіп | F13: 25112-Жеңіл металл конструкцияларын өндіру | G13: "Банк ЦентрКредит" АҚ | H13: 20000000 | I13: 1328000 | J13: Абай облысы бойынша РФ | K13: Семей қ. | L13: Абай облысы | M13: Микро кәсіпкерлік | N13: МҚ 1 шеңберінде кепілдендіру | O13: 45783.18753
A14: ЖК | B14: Dinat Абдуллина Динара Болатқызы атынан Абдуллина Динара Болатқызы | C14: Инвестициялар | D14: Жеке меншік жылжымайтын мүлікті жалға беру қызметін ұйымдастыру үшін тұрғын үй сатып алу | E14: L-Жылжымайтын мүлікпен жасалатын операциялар | F14: 68201-Жалдау (қосалқы жалдау) және меншікті немесе жалға алынған тұрғын үй объектілерін басқару | G14: "Банк ЦентрКредит" АҚ | H14: 54600000 | I14: 27300000 | J14: Абай облысы бойынша РФ | K14: Семей қ. | L14: Абай облысы | M14: Микро кәсіпкерлік | N14: МҚ 1 шеңберінде кепілдендіру | O14: 45790.30283
A15: ЖК | B15: Ткачева Айгүл Сапарқызы | C15: Айналым қаражатын толықтыру | D15: Сауда саласындағы қызметті кеңейту | E15: G-Көтерме және бөлшек сауда; автомобильдер мен мотоциклдерді жөндеу | F15: 47191-Сауда объектілері болып табылатын, сауда алаңы 2000 шаршы метрден аспайтын мамандандырылмаған дүкендердегі басқа бөлшек сауда. м | G15: "Банк ЦентрКредит" АҚ | H15: 20000000 | I15: 10000000 | J15: Абай облысы бойынша РФ | K15: Семей қ. | L15: Абай облысы | M15: Шағын кәсіпкерлік | N15: МҚ 1 шеңберінде кепілдендіру | O15: 45790.31532
A16: ЖШС | B16: BAI LOGISTICS | C16: Инвестициялар | D16: Жүк автомобиль көлігінің қызметін кеңейту | E16: Н-Тасымалдау және қоймалау | F16: 49410-Жүк автомобиль көлігінің қызметі | G16: "Банк ЦентрКредит" АҚ | H16: 128000000 | I16: 58880000 | J16: Абай облысы бойынша РФ | K16: Үржар ауданы | L16: Абай облысы | M16: Микро кәсіпкерлік | N16: МҚ 1 шеңберінде кепілдендіру | O16: 45789.46982
A17: ЖК | B17: ЖҮНІСОВ ДУМАН ЕРКІНҰЛЫНЫҢ тұлғасында Prime Way | C17: Инвестициялар | D17: Жүк тасымалдарының қызметін ұйымдастыру үшін арнайы техниканы сатып алу | E17: Н-Тасымалдау және қоймалау | F17: 49410-Жүк автомобиль көлігінің қызметі | G17: "Банк ЦентрКредит" АҚ | H17: 20900000 | I17: 10190000 | J17: Абай облысы бойынша РФ | K17: Семей қ. | L17: Абай облысы | M17: Микро кәсіпкерлік | N17: МҚ 1 шеңберінде кепілдендіру | O17: 45790.26056
A18: ЖК | B18: Бейсембекова Э.Р. Бейсембекова Эльмира Рустамқызының атынан | C18: Инвестициялар | D18: Сауда саласындағы қызметті кеңейту | E18: G-Көтерме және бөлшек сауда; автомобильдер мен мотоциклдерді жөндеу | F18: 47111-Сауда объектілері болып табылатын, сауда алаңы 2000 шаршы метрден аспайтын мамандандырылмаған дүкендерде негізінен тамақ өнімдерін, сусындар мен темекі өнімдерін бөлшек саудада сату. м | G18: "ForteBank" АҚ | H18: 99991100 | I18: 9643000 | J18: Абай облысы бойынша РФ | K18: Семей қ. | L18: Абай облысы | M18: Микро кәсіпкерлік | N18: МҚ 1 шеңберінде кепілдендіру | O18: 45791.53268
A19: ЖК | B19: Қырықбаева Гүлнара Советқазынқызы | C19: Инвестициялар | D19: Қоғамдық тамақтандыру саласындағы қызметті кеңейту | E19: I-Тұру және тамақтану бойынша қызметтер көрсету | F19: 56101-Мейрамханалардың қызметі және жол бойындағы жолақта орналасқан объектілердің қызметін қоспағанда, тамақ өнімдерін жеткізу бойынша қызметтерді ұсыну | G19: "Қазақстан Халық Банкі" АҚ | H19: 365000000 | I19: 127886650 | J19: Абай облысы бойынша РФ | K19: Семей қ. | L19: Абай облысы | M19: Микро кәсіпкерлік | N19: МҚ 1 шеңберінде кепілдендіру | O19: 45792.52521
A20: ЖК | B20: НҰРҒАЗЫҚЫЗЫ НАЗЕРКЕ | C20: Инвестициялар | D20: Жүк автомобиль көлігінің қызметін кеңейту | E20: Н-Тасымалдау және қоймалау | F20: 49410-Жүк автомобиль көлігінің қызметі | G20: "Банк ЦентрКредит" АҚ | H20: 18000000 | I20: 15300000 | J20: Абай облысы бойынша РФ | K20: Семей қ. | L20: Абай облысы | M20: Микро кәсіпкерлік | N20: МҚ 1 шеңберінде кепілдендіру | O20: 45792.52933
A21: ЖК | B21: Құсайынова САЛТАНАТ САРМАНҚЫЗЫ ҚҰСАЙЫНОВА тұлғасында | C21: Инвестициялар | D21: Жылқы шаруашылығы саласындағы қызметті кеңейту | E21: А-Ауыл, орман және балық шаруашылығы | F21: 01431-Жылқы өсіру | G21: "Банк ЦентрКредит" АҚ | H21: 45500000 | I21: 22750000 | J21: Абай облысы бойынша РФ | K21: Бесқарағай ауданы | L21: Абай облысы | M21: Микро кәсіпкерлік | N21: МҚ 1 шеңберінде кепілдендіру | O21: 45799.40772
A22: ЖК | B22: Бейсембекова Э.Р. Бейсембекова Эльмира Рустамқызының атынан | C22: Айналым қаражатын толықтыру | D22: Сауда саласындағы бизнесті кеңейту | E22: G-Көтерме және бөлшек сауда; автомобильдер мен мотоциклдерді жөндеу | F22: 47111-Сауда объектілері болып табылатын, сауда алаңы 2000 шаршы метрден аспайтын мамандандырылмаған дүкендерде негізінен тамақ өнімдерін, сусындар мен темекі өнімдерін бөлшек саудада сату. м | G22: "ForteBank" АҚ | H22: 100000000 | I22: 85000000 | J22: Абай облысы бойынша РФ | K22: Семей қ. | L22: Абай облысы | M22: Микро кәсіпкерлік | N22: МҚ 1 шеңберінде кепілдендіру | O22: 45799.40782
A23: ЖШС | B23: BUSINESS MDM | C23: Инвестициялар | D23: Мектепке дейінгі білім беру саласындағы қызметті ұйымдастыру үшін құрылыс-монтаждау жұмыстарын жүргізу | E23: P-Білім беру | F23: 85100-Мектепке дейінгі білім беру | G23: "Банк ЦентрКредит" АҚ | H23: 21500000 | I23: 10750000 | J23: Абай облысы бойынша РФ | K23: Семей қ. | L23: Абай облысы | M23: Микро кәсіпкерлік | N23: МҚ 1 шеңберінде кепілдендіру | O23: 45806.53774
A24: ЖК | B24: МҰХАМАДИЕВ ЕРЛАН КӘРІМҰЛЫ | C24: Инвестициялар | D24: Демалыс күндеріне және қысқа мерзімді тұрудың өзге де кезеңдеріне тұрғын үй беру саласындағы қызметті кеңейту | E24: I-Тұру және тамақтану бойынша қызметтер көрсету | F24: 55200-Демалыс күндеріне және қысқа мерзімді тұрудың өзге де кезеңдеріне тұрғын үй беру | G24: "Банк ЦентрКредит" АҚ | H24: 93000000 | I24: 32000000 | J24: Абай облысы бойынша РФ | K24: Семей қ. | L24: Абай облысы | M24: Микро кәсіпкерлік | N24: МҚ 1 шеңберінде кепілдендіру | O24: 45806.55792
A25: ЖК | B25: Балжан в лице ЖАНЫЛХАН БАЛЖАН ЖАБАЙҚЫЗЫ | C25: Инвестициялар | D25: Жүк тасымалдау бизнесін кеңейту | E25: Н-Тасымалдау және қоймалау | F25: 49410-Жүк автомобиль көлігінің қызметі | G25: "Банк ЦентрКредит" АҚ | H25: 60000000 | I25: 46600000 | J25: Абай облысы бойынша РФ | K25: Үржар ауданы | L25: Абай облысы | M25: Микро кәсіпкерлік | N25: МҚ 1 шеңберінде кепілдендіру | O25: 45807.21253
A26: ЖК | B26: Бақытбекұлы в лице БАҚЫТБЕКҰЛЫ АРХАТА | C26: Инвестициялар | D26: Жүк тасымалы саласындағы қызметті кеңейту | E26: Н-Тасымалдау және қоймалау | F26: 49410-Жүк автомобиль көлігінің қызметі | G26: "Банк ЦентрКредит" АҚ | H26: 30000000 | I26: 13800000 | J26: Абай облысы бойынша РФ | K26: Семей қ. | L26: Абай облысы | M26: Микро кәсіпкерлік | N26: МҚ 1 шеңберінде кепілдендіру | O26: 45807.47365
A27: ЖШС | B27: Арсемед | C27: Инвестициялар | D27: Бағдарламалық қамтамасыз етуді әзірлеу саласындағы қызметті кеңейту | E27: J-Ақпарат және байланыс | F27: 62011-Бағдарламалық қамтамасыз етуді әзірлеу | G27: "ForteBank" АҚ | H27: 60000000 | I27: 17200000 | J27: Абай облысы бойынша РФ | K27: Астана қ. | L27: Астана қ. | M27: Микро кәсіпкерлік | N27: МҚ 1 шеңберінде кепілдендіру | O27: 45812.54527
A28: ЖК | B28: Мусман ӘЛГІС ЭЛЬДАРҰЛЫ Мусман тұлғасында | C28: Инвестициялар | D28: Жүк тасымалдарының қызметін кеңейту | E28: Н-Тасымалдау және қоймалау | F28: 49410-Жүк автомобиль көлігінің қызметі | G28: "ForteBank" АҚ | H28: 100000000 | I28: 85000000 | J28: Абай облысы бойынша РФ | K28: Семей қ. | L28: Абай облысы | M28: Микро кәсіпкерлік | N28: МҚ 1 шеңберінде кепілдендіру | O28: 45817.49395
A29: ЖШС | B29: KREPTO&amp;MONOLIT | C29: Инвестициялар | D29: Тауарлық бетон өндірісі саласындағы қызметті кеңейту | E29: C-Өңдеуші өнеркәсіп | F29: 23630-Тауарлы бетон өндірісі | G29: "Банк ЦентрКредит" АҚ | H29: 119551900 | I29: 68000000 | J29: Абай облысы бойынша РФ | K29: Семей қ. | L29: Абай облысы | M29: Шағын кәсіпкерлік | N29: МҚ 1 шеңберінде кепілдендіру | O29: 45817.4939
A30: ЖК | B30: Сәрсенбай Гүлмира Сырлыбекқызы | C30: Инвестициялар | D30: Маталар мен тоқыма бұйымдарын әрлеу саласындағы қызметті кеңейту | E30: C-Өңдеуші өнеркәсіп | F30: 13300-Маталар мен тоқыма бұйымдарын өңдеу | G30: "Банк ЦентрКредит" АҚ | H30: 91000000 | I30: 45500000 | J30: Абай облысы бойынша РФ | K30: Семей қ. | L30: Абай облысы | M30: Шағын кәсіпкерлік | N30: МҚ 1 шеңберінде кепілдендіру | O30: 45817.49463
A31: ЖШС | B31: СЕМЕЙ-ОРДА | C31: Айналым қаражатын толықтыру | D31: Әктасты және доломитті ұн өндіру саласындағы қызметті кеңейту | E31: C-Өңдеуші өнеркәсіп | F31: 23522- Әктасты және доломитті ұн өндіру | G31: "Банк ЦентрКредит" АҚ | H31: 90000000 | I31: 45000000 | J31: Абай облысы бойынша РФ | K31: Семей қ. | L31: Абай облысы | M31: Шағын кәсіпкерлік | N31: МҚ 1 шеңберінде кепілдендіру | O31: 45819.5523
A32: ЖК | B32: МАХАМБЕТОВА БОТАКӨЗ СЕРІКҚЫЗЫ | C32: Инвестициялар | D32: Демалыс күндеріне және қысқа мерзімді тұрудың өзге де кезеңдеріне тұрғын үй беру жөніндегі қызметті кеңейту | E32: I-Тұру және тамақтану бойынша қызметтер көрсету | F32: 55200-Демалыс күндеріне және қысқа мерзімді тұрудың өзге де кезеңдеріне тұрғын үй беру | G32: "ForteBank" АҚ | H32: 120000000 | I32: 102000000 | J32: Абай облысы бойынша РФ | K32: район Мақаншы | L32: Абай облысы | M32: Микро кәсіпкерлік | N32: МҚ 1 шеңберінде кепілдендіру | O32: 45819.55007
A33: ЖК | B33: Абдрахманов АСХАД САБИХАНҰЛЫ атынан Абдрахманов | C33: Инвестициялар | D33: Дене жайлылығын қамтамасыз ету саласындағы қызметті кеңейту | E33: S-Өзге де қызмет түрлерін ұсыну | F33: 96040-Дене жайлылығын қамтамасыз ету жөніндегі қызмет | G33: "Банк ЦентрКредит" АҚ | H33: 50000000 | I33: 42500000 | J33: Абай облысы бойынша РФ | K33: Аягөз ауданы | L33: Абай облысы | M33: Микро кәсіпкерлік | N33: МҚ 1 шеңберінде кепілдендіру | O33: 45821.44864
A34: ЖК | B34: ЕРЕЖЕББАЕВА СӘУЛЕ ТҰРСЫНХАНҚЫЗЫ ұсынған ZHAKAN Logistics | C34: Инвестициялар | D34: Жүк тасымалы саласындағы бизнесті кеңейту | E34: Н-Тасымалдау және қоймалау | F34: 49410-Жүк автомобиль көлігінің қызметі | G34: "Банк ЦентрКредит" АҚ | H34: 100000000 | I34: 85000000 | J34: Абай облысы бойынша РФ | K34: Семей қ. | L34: Абай облысы | M34: Микро кәсіпкерлік | N34: МҚ 1 шеңберінде кепілдендіру | O34: 45827.47086
A35: ЖК | B35: Тоқтағалиев А.Қ. атынан Тоқтағалиев Айдын Қалиоллаұлы | C35: Инвестициялар | D35: Жүк тасымалы саласындағы қызметті кеңейту | E35: Н-Тасымалдау және қоймалау | F35: 49410-Жүк автомобиль көлігінің қызметі | G35: "Банк ЦентрКредит" АҚ | H35: 50000000 | I35: 42000000 | J35: Абай облысы бойынша РФ | K35: Семей қ. | L35: Абай облысы | M35: Микро кәсіпкерлік | N35: МҚ 1 шеңберінде кепілдендіру | O35: 45827.45564
A36: ЖК | B36: Төлеуханов Арман Нұриұлы Төлеуханов тұлғасында | C36: Инвестициялар | D36: Мейрамханалардың қызметін кеңейту | E36: I-Тұру және тамақтану бойынша қызметтер көрсету | F36: 56101-Мейрамханалардың қызметі және жол бойындағы жолақта орналасқан объектілердің қызметін қоспағанда, тамақ өнімдерін жеткізу бойынша қызметтерді ұсыну | G36: "Банк ЦентрКредит" АҚ | H36: 80000000 | I36: 40000000 | J36: Абай облысы бойынша РФ | K36: Семей қ. | L36: Абай облысы | M36: Шағын кәсіпкерлік | N36: МҚ 1 шеңберінде кепілдендіру | O36: 45832.4542
A37: ЖШС | B37: Liber-Semey | C37: Айналым қаражатын қайта қаржыландыру және толықтыру | D37: Сауда қызметін кеңейту | E37: G-Көтерме және бөлшек сауда; автомобильдер мен мотоциклдерді жөндеу | F37: 46909-Қандай да бір нақтылаусыз тауарлардың кең ассортиментін көтерме саудада сату | G37: "Еуразиялық банк" АҚ | H37: 100000000 | I37: 73493000 | J37: Абай облысы бойынша РФ | K37: Семей қ. | L37: Абай облысы | M37: Шағын кәсіпкерлік | N37: МҚ 1 шеңберінде кепілдендіру | O37: 45833.24517
A38: ЖШС | B38: ДиДи2122 | C38: Инвестициялар | D38: Білім беру саласындағы қызметті ұйымдастыру | E38: P-Білім беру | F38: 85609-Білім беру саласындағы өзге де қосалқы қызмет | G38: "Банк ЦентрКредит" АҚ | H38: 50000000 | I38: 4000000 | J38: Абай облысы бойынша РФ | K38: Семей қ. | L38: Абай облысы | M38: Микро кәсіпкерлік | N38: МҚ 1 шеңберінде кепілдендіру | O38: 45841.20905
A39: ЖК | B39: DaMiRenta атынан Карпич Евгения Викторовна | C39: Инвестициялар | D39: Жүк тасымалы саласындағы қызметті кеңейту | E39: Н-Тасымалдау және қоймалау | F39: 49410-Жүк автомобиль көлігінің қызметі | G39: "ForteBank" АҚ | H39: 30000000 | I39: 25000000 | J39: Абай облысы бойынша РФ | K39: Семей қ. | L39: Абай облысы | M39: Микро кәсіпкерлік | N39: МҚ 1 шеңберінде кепілдендіру | O39: 45842.54239
A40: ЖШС | B40: SSH Group | C40: Айналым қаражатын толықтыру | D40: Шпалдарды өндіру бойынша бизнесті кеңейту | E40: C-Өңдеуші өнеркәсіп | F40: 16101-Ағашты аралау және сүргілеу | G40: "ForteBank" АҚ | H40: 890000000 | I40: 756500000 | J40: Абай облысы бойынша РФ | K40: Семей қ. | L40: Абай облысы | M40: Орта кәсіпкерлік | N40: МҚ 1 шеңберінде кепілдендіру | O40: 45847.52917
A41: ЖШС | B41: Шығыс ШПЗ | C41: Айналым қаражатын толықтыру | D41: Ағаш бұйымдарын өндіру саласындағы бизнесті кеңейту | E41: C-Өңдеуші өнеркәсіп | F41: 16101-Ағашты аралау және сүргілеу | G41: "ForteBank" АҚ | H41: 265177500 | I41: 225400875 | J41: Абай облысы бойынша РФ | K41: Семей қ. | L41: Абай облысы | M41: Орта кәсіпкерлік | N41: МҚ 1 шеңберінде кепілдендіру | O41: 45849.17024
A42: ЖШС | B42: АГАТ САУДА ФИРМАСЫ | C42: Қайта қаржыландыру | D42: Коммерциялық үй-жайларды жалға беру қызметін кеңейту | E42: L-Жылжымайтын мүлікпен жасалатын операциялар | F42: 68201-Жалдау (қосалқы жалдау) және меншікті немесе жалға алынған тұрғын үй объектілерін басқару | G42: "Нұрбанк" АҚ | H42: 51432009 | I42: 23144404 | J42: Абай облысы бойынша РФ | K42: Семей қ. | L42: Абай облысы | M42: Микро кәсіпкерлік | N42: МҚ 1 шеңберінде кепілдендіру | O42: 45849.49725
A43: ЖК | B43: Гефест Компани атынан Лаук Ольга Анатольевна | C43: Айналым қаражатын толықтыру | D43: Мамандандырылмаған дүкендерде басқа бөлшек саудадағы қызметті кеңейту | E43: G-Көтерме және бөлшек сауда; автомобильдер мен мотоциклдерді жөндеу | F43: 47191-Сауда объектілері болып табылатын, сауда алаңы 2000 шаршы метрден аспайтын мамандандырылмаған дүкендердегі басқа бөлшек сауда. м | G43: "Банк ЦентрКредит" АҚ | H43: 19700000 | I43: 9850000 | J43: Абай облысы бойынша РФ | K43: Семей қ. | L43: Абай облысы | M43: Микро кәсіпкерлік | N43: МҚ 1 шеңберінде кепілдендіру | O43: 45852.44448
A44: ЖШС | B44: ArInvest energy | C44: Айналым қаражатын толықтыру | D44: Пластмасса плиталарын, табақтарды, құбырларды және профильдерді өндіру саласындағы қызметті кеңейту | E44: C-Өңдеуші өнеркәсіп | F44: 22210-Пластмасса плиталар, табақтар, құбырлар және профильдер өндірісі | G44: "ForteBank" АҚ | H44: 300000000 | I44: 255000000 | J44: Абай облысы бойынша РФ | K44: Павлодар қ. | L44: Павлодар облысы | M44: Орта кәсіпкерлік | N44: МҚ 1 шеңберінде кепілдендіру | O44: 45861.29517
A45: ЖШС | B45: Даму Строй LTD | C45: Айналым қаражатын толықтыру | D45: Тұрғын үй ғимараттарын салу саласындағы қызметті кеңейту | E45: F-Құрылыс | F45: 41201-Тұрғын үй ғимараттарының құрылысы | G45: "Нұрбанк" АҚ | H45: 200000000 | I45: 74500000 | J45: Абай облысы бойынша РФ | K45: Семей қ. | L45: Абай облысы | M45: Шағын кәсіпкерлік | N45: МҚ 1 шеңберінде кепілдендіру | O45: 45866.41097
A46: ЖК | B46: ЗЕЙНЕГАБИДЕНОВА ҚЫМБАТ УАҒЫЗХАНҚЫЗЫ | C46: Инвестициялар | D46: Тамақтандыруды қамтамасыз ету бойынша басқа да іс-шараларды ұйымдастыру | E46: I-Тұру және тамақтану бойынша қызметтер көрсету | F46: 56299-Басқа топтамаларға енгізілмеген, тамақтандыруды қамтамасыз ету жөніндегі өзге де қызмет | G46: "Еуразиялық банк" АҚ | H46: 100000000 | I46: 9530000 | J46: Абай облысы бойынша РФ | K46: Семей қ. | L46: Абай облысы | M46: Микро кәсіпкерлік | N46: МҚ 1 шеңберінде кепілдендіру | O46: 45866.51157
A47: ЖШС | B47: ONE PIECE-1 | C47: Инвестициялар | D47: Мейрамхана қызметін кеңейту | E47: I-Тұру және тамақтану бойынша қызметтер көрсету | F47: 56101-Мейрамханалардың қызметі және жол бойындағы жолақта орналасқан объектілердің қызметін қоспағанда, тамақ өнімдерін жеткізу бойынша қызметтерді ұсыну | G47: "Нұрбанк" АҚ | H47: 120000000 | I47: 102000000 | J47: Абай облысы бойынша РФ | K47: Ақсу қ. | L47: Павлодар облысы | M47: Микро кәсіпкерлік | N47: МҚ 1 шеңберінде кепілдендіру | O47: 45868.51318
A48: ЖК | B48: Гайнулина Эльмира Самигуллақызы | C48: Айналым қаражатын толықтыру | D48: Көтерме сауда саласындағы қызметті кеңейту | E48: G-Көтерме және бөлшек сауда; автомобильдер мен мотоциклдерді жөндеу | F48: 46909-Қандай да бір нақтылаусыз тауарлардың кең ассортиментін көтерме саудада сату | G48: "Еуразиялық банк" АҚ | H48: 25000000 | I48: 8645650 | J48: Абай облысы бойынша РФ | K48: Семей қ. | L48: Абай облысы | M48: Шағын кәсіпкерлік | N48: МҚ 1 шеңберінде кепілдендіру | O48: 45881.29171
A49: ЖК | B49: ҒАЗИЗБЕКОВ ЕРНАР РУСЛАНҰЛЫ | C49: Инвестициялар | D49: Кинофильмдерді көрсету жөніндегі қызметті кеңейту | E49: J-Ақпарат және байланыс | F49: 59140-Кинофильмдерді көрсету жөніндегі қызмет | G49: "Алатау қалалық банкі" АҚ | H49: 30000000 | I49: 25500000 | J49: Абай облысы бойынша РФ | K49: Семей қ. | L49: Абай облысы | M49: Шағын кәсіпкерлік | N49: МҚ 1 шеңберінде кепілдендіру | O49: 45881.29179
A50: ЖК | B50: AzaLiya атынан ЕРКЕБАЕВА ЗУЛЬФИЯ МУНИРОВНА қатысты | C50: Инвестициялар | D50: Арнайы киім өндірісі саласындағы қызметті кеңейту | E50: C-Өңдеуші өнеркәсіп | F50: 14120-Арнайы киім өндірісі | G50: "Алатау қалалық банкі" АҚ | H50: 120000000 | I50: 40567800 | J50: Абай облысы бойынша РФ | K50: Семей қ. | L50: Абай облысы | M50: Шағын кәсіпкерлік | N50: МҚ 1 шеңберінде кепілдендіру | O50: 45897.50153
A51: ЖК | B51: Құдағелдинов Аманғазы Нұрғалиұлы Құдағелдинов тұлғасында | C51: Инвестициялар | D51: Өзге де жиһаз өндірісінің қызметін ұйымдастыру | E51: C-Өңдеуші өнеркәсіп | F51: 31090-Басқа жиһаз өндірісі | G51: "Алатау қалалық банкі" АҚ | H51: 20000000 | I51: 17000000 | J51: Абай облысы бойынша РФ | K51: Семей қ. | L51: Абай облысы | M51: Микро кәсіпкерлік | N51: МҚ 1 шеңберінде кепілдендіру | O51: 45894.41757
A52: ЖШС | B52: StudDom | C52: Қайта қаржыландыру | D52: Жүк тасымалдау бойынша қызметті ұйымдастыру | E52: Н-Тасымалдау және қоймалау | F52: 49410-Жүк автомобиль көлігінің қызметі | G52: "Банк ЦентрКредит" АҚ | H52: 126558694 | I52: 103000000 | J52: Абай облысы бойынша РФ | K52: Семей қ. | L52: Абай облысы | M52: Шағын кәсіпкерлік | N52: МҚ 1 шеңберінде кепілдендіру | O52: 45896.19811
A53: ЖК | B53: Нұр Жол атынан Данабаев Аслан Асқарұлы | C53: Инвестициялар | D53: Қонақүй қызметтерін көрсету қызметін кеңейту | E53: I-Тұру және тамақтану бойынша қызметтер көрсету | F53: 55102-Жол бойындағы жолақта орналасқан қонақүйлерді қоспағанда, мейрамханалары жоқ қонақүйлердің қызмет көрсетуі | G53: "ForteBank" АҚ | H53: 35500000 | I53: 23600000 | J53: Абай облысы бойынша РФ | K53: Семей қ. | L53: Абай облысы | M53: Микро кәсіпкерлік | N53: МҚ 1 шеңберінде кепілдендіру | O53: 45896.19837
A54: ЖШС | B54: РСУ-4 | C54: Айналым қаражатын толықтыру | D54: Өнеркәсіптік газдарды өндіру жөніндегі қызметті кеңейту | E54: C-Өңдеуші өнеркәсіп | F54: 20110-Өнеркәсіптік газдар өндірісі | G54: "ForteBank" АҚ | H54: 150000000 | I54: 127500000 | J54: Абай облысы бойынша РФ | K54: Алматы қ. | L54: Алматы қ. | M54: Микро кәсіпкерлік | N54: МҚ 1 шеңберінде кепілдендіру | O54: 45897.50159
A55: ЖК | B55: АХМЕТҚАЛИ АСЫЛАН ЕРЛАНҰЛЫ | C55: Инвестициялар | D55: Жүк тасымалдау бизнесін кеңейту | E55: Н-Тасымалдау және қоймалау | F55: 49410-Жүк автомобиль көлігінің қызметі | G55: "ForteBank" АҚ | H55: 44000000 | I55: 37400000 | J55: Абай облысы бойынша РФ | K55: Семей қ. | L55: Абай облысы | M55: Микро кәсіпкерлік | N55: МҚ 1 шеңберінде кепілдендіру | O55: 45897.50073
A56: ЖШС | B56: PANDA CHILD | C56: Инвестициялар | D56: Мектепке дейінгі білім беру саласындағы қызметті кеңейту | E56: P-Білім беру | F56: 85100-Мектепке дейінгі білім беру | G56: "Алатау қалалық банкі" АҚ | H56: 20000000 | I56: 17000000 | J56: Абай облысы бойынша РФ | K56: Семей қ. | L56: Абай облысы | M56: Микро кәсіпкерлік | N56: МҚ 1 шеңберінде кепілдендіру | O56: 45898.23545
A57: ЖШС | B57: Мақай | C57: Айналым қаражатын толықтыру | D57: Май-тоң май өнімдерін өндіру бойынша бизнесті кеңейту | E57: C-Өңдеуші өнеркәсіп | F57: 10411-Тазартылмаған майлар мен тоң майлар өндірісі | G57: "Банк ЦентрКредит" АҚ | H57: 1000000000 | I57: 449007184 | J57: Абай облысы бойынша РФ | K57: Семей қ. | L57: Абай облысы | M57: Орта кәсіпкерлік | N57: МҚ 1 шеңберінде кепілдендіру | O57: 45897.48073
A58: ЖШС | B58: Parasat Consulting | C58: Инвестициялар | D58: Жеңіл металл конструкцияларын өндіру қызметін ұйымдастыру | E58: C-Өңдеуші өнеркәсіп | F58: 25112-Жеңіл металл конструкцияларын өндіру | G58: "Банк ЦентрКредит" АҚ | H58: 240000000 | I58: 120000000 | J58: Абай облысы бойынша РФ | K58: Семей қ. | L58: Абай облысы | M58: Микро кәсіпкерлік | N58: МҚ 1 шеңберінде кепілдендіру | O58: 45898.26115
A59: ЖК | B59: Сарсекин Айдар Кайратович | C59: Инвестициялар | D59: Жүк тасымалдау бойынша қызметті кеңейту | E59: Н-Тасымалдау және қоймалау | F59: 49410-Жүк автомобиль көлігінің қызметі | G59: "Алатау қалалық банкі" АҚ | H59: 15000000 | I59: 12750000 | J59: Абай облысы бойынша РФ | K59: Семей қ. | L59: Абай облысы | M59: Микро кәсіпкерлік | N59: МҚ 1 шеңберінде кепілдендіру | O59: 45898.53892
A60: ЖК | B60: ОҚУБАЕВ НҰРЖАН МАРАТҰЛЫ | C60: Инвестициялар | D60: Қоғамдық тамақтандыру саласындағы қызметті кеңейту | E60: I-Тұру және тамақтану бойынша қызметтер көрсету | F60: 56299-Басқа топтамаларға енгізілмеген, тамақтандыруды қамтамасыз ету жөніндегі өзге де қызмет | G60: "Алатау қалалық банкі" АҚ | H60: 80000000 | I60: 68000000 | J60: Абай облысы бойынша РФ | K60: Ақсу қ. | L60: Павлодар облысы | M60: Шағын кәсіпкерлік | N60: МҚ 1 шеңберінде кепілдендіру | O60: 45902.17858
A61: ЖК | B61: Қозығұлов Расул Маратбекұлы | C61: Инвестициялар | D61: Жүк тасымалдау бизнесін кеңейту | E61: Н-Тасымалдау және қоймалау | F61: 49410-Жүк автомобиль көлігінің қызметі | G61: "Алатау қалалық банкі" АҚ | H61: 40500000 | I61: 24995700 | J61: Абай облысы бойынша РФ | K61: Өскемен қ. | L61: Шығыс Қазақстан облысы | M61: Микро кәсіпкерлік | N61: МҚ 1 шеңберінде кепілдендіру | O61: 45902.1785
A62: ЖК | B62: КАРЛЫБАЕВ АЛМАС ЖУМАГАЗЫЕВИЧ | C62: Инвестициялар | D62: Жүк автомобиль көлігінің қызметін ұйымдастыру | E62: Н-Тасымалдау және қоймалау | F62: 49410-Жүк автомобиль көлігінің қызметі | G62: "ForteBank" АҚ | H62: 35000000 | I62: 12444000 | J62: Абай облысы бойынша РФ | K62: Семей қ. | L62: Абай облысы | M62: Микро кәсіпкерлік | N62: МҚ 1 шеңберінде кепілдендіру | O62: 45903.25697
A63: ЖК | B63: Мұсабекова А.С. атынан МҰСАБЕКОВА АҚМАРАЛ СЕМБАЙҚЫЗЫ | C63: Қайта қаржыландыру | D63: Жеке меншік жылжымайтын мүлікті жалға беру саласындағы қызметті кеңейту | E63: L-Жылжымайтын мүлікпен жасалатын операциялар | F63: 68201-Жалдау (қосалқы жалдау) және меншікті немесе жалға алынған тұрғын үй объектілерін басқару | G63: "Нұрбанк" АҚ | H63: 181984381 | I63: 32400000 | J63: Абай облысы бойынша РФ | K63: Семей қ. | L63: Абай облысы | M63: Микро кәсіпкерлік | N63: МҚ 1 шеңберінде кепілдендіру | O63: 45903.47998
A64: ЖК | B64: НҰРОВ БЕРІК ҚУАНЫШҰЛЫ | C64: Инвестициялар | D64: Демалысты және ойын-сауықты ұйымдастыру жөніндегі қызметтің өзге де түрлерін кеңейту | E64: R-Өнер, ойын-сауық және демалыс | F64: 93299-Демалыс пен ойын-сауықты ұйымдастыру жөніндегі өзге де қызмет түрлері | G64: "Банк"Bank RBK" АҚ | H64: 68849974 | I64: 36167966 | J64: Абай облысы бойынша РФ | K64: Семей қ. | L64: Абай облысы | M64: Микро кәсіпкерлік | N64: МҚ 1 шеңберінде кепілдендіру | O64: 45904.51671
A65: ЖК | B65: ГАРБУЗЕНКО АЛЕКСАНДР ПЕТРОВИЧ | C65: Инвестициялар | D65: Мамандандырылған дүкендерде өзге де бөлшек сауда қызметін кеңейту | E65: G-Көтерме және бөлшек сауда; автомобильдер мен мотоциклдерді жөндеу | F65: 47785-Сауда объектілері болып табылатын, сауда алаңы 2000 шаршы метрден асатын мамандандырылған дүкендердегі басқа бөлшек сауда.м (2000 шаршы метр және одан жоғары) | G65: "Банк"Bank RBK" АҚ | H65: 19618086 | I65: 16675373 | J65: Абай облысы бойынша РФ | K65: Семей қ. | L65: Абай облысы | M65: Микро кәсіпкерлік | N65: МҚ 1 шеңберінде кепілдендіру | O65: 45904.54864
A66: ЖК | B66: Абдыров М атынан АБДЫРОВ МАРАТ ЕСЕНБАЙҰЛЫ | C66: Инвестициялар | D66: Жүк тасымалы саласындағы қызметті кеңейту | E66: Н-Тасымалдау және қоймалау | F66: 49410-Жүк автомобиль көлігінің қызметі | G66: "ForteBank" АҚ | H66: 50000000 | I66: 42500000 | J66: Абай облысы бойынша РФ | K66: Үржар ауданы | L66: Абай облысы | M66: Микро кәсіпкерлік | N66: МҚ 1 шеңберінде кепілдендіру | O66: 45905.46051
A67: ЖШС | B67: Кастос | C67: Инвестициялар | D67: Стоматологиялық қызметті кеңейту | E67: Q-Денсаулық сақтау және халыққа әлеуметтік қызмет көрсету | F67: 86230-Стоматологиялық қызмет | G67: "Нұрбанк" АҚ | H67: 39206500 | I67: 5000000 | J67: Абай облысы бойынша РФ | K67: Павлодар қ. | L67: Павлодар облысы | M67: Микро кәсіпкерлік | N67: МҚ 1 шеңберінде кепілдендіру | O67: 45912.58198
A68: ЖК | B68: Гимжевский Олег Валерьевич | C68: Инвестициялар | D68: Жүк тасымалдарының қызметін ұйымдастыру | E68: Н-Тасымалдау және қоймалау | F68: 49410-Жүк автомобиль көлігінің қызметі | G68: "Банк ЦентрКредит" АҚ | H68: 17000000 | I68: 8500000 | J68: Абай облысы бойынша РФ | K68: Семей қ. | L68: Абай облысы | M68: Микро кәсіпкерлік | N68: МҚ 1 шеңберінде кепілдендіру | O68: 45918.48761
A69: ЖК | B69: B-Diligent атынан БЕРІКБОСЫНОВ БАУЫРЖАН ТҰРСЫНҒАЛИҰЛЫ қатысты | C69: Инвестициялар | D69: Қауіпті емес қалдықтарды өңдеу және жою қызметін ұйымдастыру | E69: E-Сумен жабдықтау; қалдықтарды жинау, өңдеу және жою, ластануды жою жөніндегі қызмет | F69: 38210-Қауіпті емес қалдықтарды өңдеу және жою | G69: "Банк ЦентрКредит" АҚ | H69: 69000000 | I69: 34500000 | J69: Абай облысы бойынша РФ | K69: Алматы қ. | L69: Алматы қ. | M69: Микро кәсіпкерлік | N69: МҚ 1 шеңберінде кепілдендіру | O69: 45919.46393
A70: ЖК | B70: МҰҚАНОВА БАҒЫМ СОВЕТҚЫЗЫ | C70: Инвестициялар | D70: Жүк тасымалы саласындағы қызметті кеңейту | E70: Н-Тасымалдау және қоймалау | F70: 49410-Жүк автомобиль көлігінің қызметі | G70: "Банк ЦентрКредит" АҚ | H70: 22500000 | I70: 11250000 | J70: Абай облысы бойынша РФ | K70: Семей қ. | L70: Абай облысы | M70: Микро кәсіпкерлік | N70: МҚ 1 шеңберінде кепілдендіру | O70: 45922.40709
A71: ЖК | B71: МҰХАНОВА ДИНАРА ЖӘНІБЕКҚЫЗЫ тұлғасында МҰХАНОВА | C71: Инвестициялар | D71: Жүк тасымалы саласындағы қызметті ұйымдастыру | E71: Н-Тасымалдау және қоймалау | F71: 49410-Жүк автомобиль көлігінің қызметі | G71: "Банк ЦентрКредит" АҚ | H71: 28500000 | I71: 14250000 | J71: Абай облысы бойынша РФ | K71: Семей қ. | L71: Абай облысы | M71: Микро кәсіпкерлік | N71: МҚ 1 шеңберінде кепілдендіру | O71: 45930.44344
A72: ЖК | B72: АЯГАНОВА в лице САҒЫНТАЙҚЫЗЫ ЗАУРЕ | C72: Инвестициялар | D72: Сауда қызметін кеңейту | E72: G-Көтерме және бөлшек сауда; автомобильдер мен мотоциклдерді жөндеу | F72: 47291-Сауда объектілері болып табылатын, сауда алаңы 2000 шаршы метрден аспайтын мамандандырылған дүкендерде азық-түліктің басқа бөлшек саудасы. м | G72: "Банк ЦентрКредит" АҚ | H72: 98000000 | I72: 49000000 | J72: Абай облысы бойынша РФ | K72: Семей қ. | L72: Абай облысы | M72: Микро кәсіпкерлік | N72: МҚ 1 шеңберінде кепілдендіру | O72: 45930.54746
A73: ЖК | B73: Камал КАМАЛОВ АЙДЫН АМАНГЕЛДІҰЛЫНЫҢ тұлғасында | C73: Инвестициялар | D73: Металл есіктер мен терезелер өндірісінің қызметін ұйымдастыру | E73: C-Өңдеуші өнеркәсіп | F73: 25120-Металл есіктер мен терезелер өндірісі | G73: "ForteBank" АҚ | H73: 9000000 | I73: 7650000 | J73: Абай облысы бойынша РФ | K73: Семей қ. | L73: Абай облысы | M73: Микро кәсіпкерлік | N73: МҚ 1 шеңберінде кепілдендіру | O73: 45932.45924
A74: ЖК | B74: Камал КАМАЛОВ АЙДЫН АМАНГЕЛДІҰЛЫНЫҢ тұлғасында | C74: Айналым қаражатын толықтыру | D74: Металл есіктер мен терезелер өндірісі бойынша қызметті кеңейту | E74: C-Өңдеуші өнеркәсіп | F74: 25120-Металл есіктер мен терезелер өндірісі | G74: "ForteBank" АҚ | H74: 5500000 | I74: 4675000 | J74: Абай облысы бойынша РФ | K74: Семей қ. | L74: Абай облысы | M74: Микро кәсіпкерлік | N74: МҚ 1 шеңберінде кепілдендіру | O74: 45932.53567
A75: ЖК | B75: ҚҰСАЙЫНОВ БОЛАТ ЖҰМАТАЙҰЛЫ | C75: Инвестициялар | D75: Жеке меншік тұрғын жылжымайтын мүлікті жалға беру бойынша қызметті кеңейту | E75: L-Жылжымайтын мүлікпен жасалатын операциялар | F75: 68201-Жалдау (қосалқы жалдау) және меншікті немесе жалға алынған тұрғын үй объектілерін басқару | G75: "Алатау қалалық банкі" АҚ | H75: 20000000 | I75: 17000000 | J75: Абай облысы бойынша РФ | K75: Семей қ. | L75: Абай облысы | M75: Микро кәсіпкерлік | N75: МҚ 1 шеңберінде кепілдендіру | O75: 45938.20007
A76: ЖК | B76: Мұхамеджанова Ата Кәдеқызы | C76: Инвестициялар | D76: Өзге де бөлшек сауда қызметін кеңейту | E76: G-Көтерме және бөлшек сауда; автомобильдер мен мотоциклдерді жөндеу | F76: 47789-Сауда объектілері болып табылатын, сауда алаңы 2000 шаршы метрден аспайтын мамандандырылған дүкендердегі басқа бөлшек сауда. м | G76: "Алатау қалалық банкі" АҚ | H76: 20000000 | I76: 17000000 | J76: Абай облысы бойынша РФ | K76: Семей қ. | L76: Абай облысы | M76: Микро кәсіпкерлік | N76: МҚ 1 шеңберінде кепілдендіру | O76: 45938.53859
A77: ЖШС | B77: Grant Stroy Group | C77: Айналым қаражатын толықтыру | D77: Көтерме сауда саласындағы қызметті кеңейту | E77: G-Көтерме және бөлшек сауда; автомобильдер мен мотоциклдерді жөндеу | F77: 46909-Қандай да бір нақтылаусыз тауарлардың кең ассортиментін көтерме саудада сату | G77: "Алатау қалалық банкі" АҚ | H77: 77500000 | I77: 30800000 | J77: Абай облысы бойынша РФ | K77: Бесқарағай ауданы | L77: Абай облысы | M77: Микро кәсіпкерлік | N77: МҚ 1 шеңберінде кепілдендіру | O77: 45944.49273
A78: ЖШС | B78: Intellect Electronics | C78: Айналым қаражатын толықтыру | D78: Компьютерлер мен перифериялық жабдықтарды жөндеу бойынша қызметті кеңейту | E78: S-Өзге де қызмет түрлерін ұсыну | F78: 95110-Компьютерлер мен перифериялық жабдықтарды жөндеу | G78: "Алатау қалалық банкі" АҚ | H78: 20000000 | I78: 17000000 | J78: Абай облысы бойынша РФ | K78: Семей қ. | L78: Абай облысы | M78: Микро кәсіпкерлік | N78: МҚ 1 шеңберінде кепілдендіру | O78: 45945.27504
A79: ЖШС | B79: Семей Құрылыс Материалдары | C79: Инвестициялар | D79: Құрылыс материалдарын өндіру саласындағы бизнесті кеңейту | E79: C-Өңдеуші өнеркәсіп | F79: 23650-Асбестцементтен және талшықты цементтен бұйымдар жасау | G79: "Қазақстан Халық Банкі" АҚ | H79: 500000000 | I79: 142000000 | J79: Абай облысы бойынша РФ | K79: Семей қ. | L79: Абай облысы | M79: Ірі кәсіпкерлік | N79: МҚ 1 шеңберінде кепілдендіру | O79: 45945.50013
A80: ЖК | B80: СКОКОВ ДМИТРИЙ АЛЕКСАНДРОВИЧ | C80: Инвестициялар | D80: Сауда саласындағы қызметті кеңейту | E80: G-Көтерме және бөлшек сауда; автомобильдер мен мотоциклдерді жөндеу | F80: 47599-Басқа топтамаларға енгізілмеген жарықтандыру құрылғылары мен тұрмыстық бұйымдарды бөлшек саудада сату, сауда объектілері болып табылатын мамандандырылған дүкендерде, сауда алаңы 2000 шаршы метрден аз. м | G80: "Алатау қалалық банкі" АҚ | H80: 20000000 | I80: 17000000 | J80: Абай облысы бойынша РФ | K80: Семей қ. | L80: Абай облысы | M80: Микро кәсіпкерлік | N80: МҚ 1 шеңберінде кепілдендіру | O80: 45951.17528
A81: ЖШС | B81: Q4Tulpar_Oral | C81: Инвестициялар | D81: Жол бойындағы жолақта орналасқан қонақүйлерді қоспағанда, мейрамханалары бар қонақүйлердің қызмет көрсету қызметін кеңейту | E81: I-Тұру және тамақтану бойынша қызметтер көрсету | F81: 55101-Жол бойындағы жолақта орналасқан қонақүйлерді қоспағанда, мейрамханалары бар қонақүйлердің қызмет көрсетуі | G81: "Банк ЦентрКредит" АҚ | H81: 1459000000 | I81: 1240150000 | J81: Абай облысы бойынша РФ | K81: Семей қ. | L81: Абай облысы | M81: Микро кәсіпкерлік | N81: МҚ 1 шеңберінде кепілдендіру | O81: 45952.51289
A82: ЖК | B82: Әміренова Айтолқын Тастымбекқызы | C82: Инвестициялар | D82: Өндіріс саласындағы қызметті кеңейту | E82: C-Өңдеуші өнеркәсіп | F82: 24200-Болаттан жасалған құбырлар, түтіктер, қуыс профильдер, фитингтер өндірісі | G82: "Банк ЦентрКредит" АҚ | H82: 55000000 | I82: 24930349 | J82: Абай облысы бойынша РФ | K82: Астана қ. | L82: Астана қ. | M82: Шағын кәсіпкерлік | N82: МҚ 1 шеңберінде кепілдендіру | O82: 45952.51295
A83: ЖК | B83: ДҮЙСЕКОВА ДИАНА МИРХАДҚЫЗЫ | C83: Инвестициялар | D83: Мамандандырылған дүкендерде сағаттар мен зергерлік бұйымдардың бөлшек саудасын кеңейту | E83: G-Көтерме және бөлшек сауда; автомобильдер мен мотоциклдерді жөндеу | F83: 47771-Сауда алаңы 2000 шаршы метрден аспайтын сауда объектілері болып табылатын мамандандырылған дүкендерде сағаттар мен зергерлік бұйымдарды бөлшек саудада сату. м | G83: "Алатау қалалық банкі" АҚ | H83: 20000000 | I83: 17000000 | J83: Абай облысы бойынша РФ | K83: Семей қ. | L83: Абай облысы | M83: Микро кәсіпкерлік | N83: МҚ 1 шеңберінде кепілдендіру | O83: 45954.157
A84: ЖК | B84: НҰРПЕЙІСОВ ҚУАТ ТӨЛЕУБЕКҰЛЫ | C84: Инвестициялар | D84: Білім беру қызметін кеңейту | E84: P-Білім беру | F84: 85599-Басқа топтамаларға енгізілмеген, білім беру саласындағы өзге де қызметтер | G84: "Алатау қалалық банкі" АҚ | H84: 20000000 | I84: 17000000 | J84: Абай облысы бойынша РФ | K84: Семей қ. | L84: Абай облысы | M84: Микро кәсіпкерлік | N84: МҚ 1 шеңберінде кепілдендіру | O84: 45967.19378
A85: ЖШС | B85: OD Coworking | C85: Инвестициялар | D85: Жүк тасымалдары бойынша қызметті ұйымдастыру | E85: Н-Тасымалдау және қоймалау | F85: 49410-Жүк автомобиль көлігінің қызметі | G85: "Банк ЦентрКредит" АҚ | H85: 60000000 | I85: 30000000 | J85: Абай облысы бойынша РФ | K85: Астана қ. | L85: Астана қ. | M85: Микро кәсіпкерлік | N85: МҚ 1 шеңберінде кепілдендіру | O85: 45958.16572
A86: ЖК | B86: Мамишева Бақытгүл Алтынбекқызы Мамишева тұлғасында Мамишева | C86: Инвестициялар | D86: Мамандандырылған дүкендерде жемістер мен көкөністердің бөлшек саудасының қызметін ұйымдастыру | E86: G-Көтерме және бөлшек сауда; автомобильдер мен мотоциклдерді жөндеу | F86: 47211-Сауда объектілері болып табылатын, сауда алаңы 2000 шаршы метрден аспайтын мамандандырылған дүкендерде жемістер мен көкөністерді бөлшек саудада сату. м | G86: "Алатау қалалық банкі" АҚ | H86: 20000000 | I86: 17000000 | J86: Абай облысы бойынша РФ | K86: Аягөз ауданы | L86: Абай облысы | M86: Микро кәсіпкерлік | N86: МҚ 1 шеңберінде кепілдендіру | O86: 45958.48352
A87: ЖК | B87: Баянбаева Сандуғаш Ахметқызы | C87: Инвестициялар | D87: Құрылыста пайдаланылатын пластмасса бұйымдарын өндіру саласындағы кеңейту | E87: C-Өңдеуші өнеркәсіп | F87: 22231-Құрылыста қолданылатын пластмасса бұйымдарын өндіру | G87: "Алатау қалалық банкі" АҚ | H87: 20000000 | I87: 17000000 | J87: Абай облысы бойынша РФ | K87: Семей қ. | L87: Абай облысы | M87: Микро кәсіпкерлік | N87: МҚ 1 шеңберінде кепілдендіру | O87: 45959.28407
A88: ЖК | B88: ДҮЙСЕКОВ МИРХАД МЕҢДІҒАЛИҰЛЫ | C88: Қайта қаржыландыру және Инвестициялар | D88: Жалға алу және өндіріс саласындағы қызметті кеңейту | E88: C-Өңдеуші өнеркәсіп | F88: 32120-Зергерлік және соған ұқсас бұйымдар өндірісі | G88: "Алатау қалалық банкі" АҚ | H88: 102633000 | I88: 51316500 | J88: Абай облысы бойынша РФ | K88: Семей қ. | L88: Абай облысы | M88: Микро кәсіпкерлік | N88: МҚ 1 шеңберінде кепілдендіру | O88: 45958.52089
A89: ЖШС | B89: SDS plus company | C89: Айналым қаражатын толықтыру | D89: Өндіріс саласындағы бизнесті кеңейту | E89: C-Өңдеуші өнеркәсіп | F89: 23611- Құрастырмалы темірбетон және бетон конструкциялары мен бұйымдарын өндіру | G89: "Нұрбанк" АҚ | H89: 50000000 | I89: 42500000 | J89: Абай облысы бойынша РФ | K89: Семей қ. | L89: Абай облысы | M89: Шағын кәсіпкерлік | N89: МҚ 1 шеңберінде кепілдендіру | O89: 45959.38415
A90: ЖК | B90: Тұрсынханов Сайлауғали Төлегенұлы | C90: Инвестициялар | D90: Демалыс күндеріне және қысқа мерзімді тұрудың өзге де кезеңдеріне тұрғын үй беру қызметін ұйымдастыру | E90: I-Тұру және тамақтану бойынша қызметтер көрсету | F90: 55200-Демалыс күндеріне және қысқа мерзімді тұрудың өзге де кезеңдеріне тұрғын үй беру | G90: "ForteBank" АҚ | H90: 39000000 | I90: 22477455 | J90: Абай облысы бойынша РФ | K90: район Мақаншы | L90: Абай облысы | M90: Микро кәсіпкерлік | N90: МҚ 1 шеңберінде кепілдендіру | O90: 45960.30708
A91: ЖК | B91: Асанәлі СҮЛЕЙМЕНОВА МАРЖАН АМАНГЕЛДІҚЫЗЫ тұлғасында | C91: Инвестициялар | D91: Демалыс базасының қызметін ұйымдастыру | E91: I-Тұру және тамақтану бойынша қызметтер көрсету | F91: 55200-Демалыс күндеріне және қысқа мерзімді тұрудың өзге де кезеңдеріне тұрғын үй беру | G91: "ForteBank" АҚ | H91: 150000000 | I91: 73300000 | J91: Абай облысы бойынша РФ | K91: район Мақаншы | L91: Абай облысы | M91: Шағын кәсіпкерлік | N91: МҚ 1 шеңберінде кепілдендіру | O91: 45975.58222
A92: ЖШС | B92: РСУ-4 | C92: Айналым қаражатын қайта қаржыландыру және толықтыру | D92: Өнеркәсіптік газдарды өндіру жөніндегі қызметті кеңейту | E92: C-Өңдеуші өнеркәсіп | F92: 20110-Өнеркәсіптік газдар өндірісі | G92: "ForteBank" АҚ | H92: 150000000 | I92: 127500000 | J92: Абай облысы бойынша РФ | K92: Алматы қ. | L92: Алматы қ. | M92: Микро кәсіпкерлік | N92: МҚ 1 шеңберінде кепілдендіру | O92: 45961.5313
A93: ЖШС | B93: AmirTradeCompany | C93: Айналым қаражатын толықтыру | D93: Майларды өндіру саласындағы қызметті кеңейту | E93: C-Өңдеуші өнеркәсіп | F93: 10411-Тазартылмаған майлар мен тоң майлар өндірісі | G93: "Фридом Банк Қазақстан" АҚ | H93: 3500000000 | I93: 2975000000 | J93: Абай облысы бойынша РФ | K93: Семей қ. | L93: Абай облысы | M93: Орта кәсіпкерлік | N93: МҚ 1 шеңберінде кепілдендіру | O93: 45967.17994
A94: ЖШС | B94: Казлеспром LTD | C94: Инвестициялар | D94: Макулатураны қайта өңдеу жөніндегі қызметті кеңейту | E94: C-Өңдеуші өнеркәсіп | F94: 17211-Гофрленген қағаз және картон өндірісі | G94: "Алатау қалалық банкі" АҚ | H94: 100000000 | I94: 70000000 | J94: Абай облысы бойынша РФ | K94: Семей қ. | L94: Абай облысы | M94: Шағын кәсіпкерлік | N94: МҚ 1 шеңберінде кепілдендіру | O94: 45967.49308
A95: ЖК | B95: АДАРИЧЕВ СЕРГЕЙ АЛЕКСАНДРОВИЧ | C95: Инвестициялар | D95: Жалға беру қызметін ұйымдастыру және меншікті немесе жалға алынған тұрғын үй жылжымайтын мүлкін басқару | E95: L-Жылжымайтын мүлікпен жасалатын операциялар | F95: 68201-Жалдау (қосалқы жалдау) және меншікті немесе жалға алынған тұрғын үй объектілерін басқару | G95: "Алатау қалалық банкі" АҚ | H95: 20000000 | I95: 17000000 | J95: Абай облысы бойынша РФ | K95: Семей қ. | L95: Абай облысы | M95: Микро кәсіпкерлік | N95: МҚ 1 шеңберінде кепілдендіру | O95: 45973.15738
A96: ЖК | B96: Мусман ӘЛГІС ЭЛЬДАРҰЛЫ Мусман тұлғасында | C96: Қайта қаржыландыру және Инвестициялар | D96: Жүк тасымалдау бизнесін кеңейту | E96: Н-Тасымалдау және қоймалау | F96: 49410-Жүк автомобиль көлігінің қызметі | G96: "ForteBank" АҚ | H96: 98223734.51 | I96: 83430000 | J96: Абай облысы бойынша РФ | K96: Семей қ. | L96: Абай облысы | M96: Микро кәсіпкерлік | N96: МҚ 1 шеңберінде кепілдендіру | O96: 45973.44915
A97: ЖК | B97: ӨТЕПОВА МӘДИНА МҮСІЛІМҚЫЗЫ | C97: Инвестициялар | D97: Өндіріс саласындағы қызметті кеңейту | E97: C-Өңдеуші өнеркәсіп | F97: 10710- Қысқа мерзімді сақтауға арналған нан-тоқаш және ұннан жасалған кондитерлік өнімдер өндірісі | G97: "Алатау қалалық банкі" АҚ | H97: 15000000 | I97: 12750000 | J97: Абай облысы бойынша РФ | K97: Семей қ. | L97: Абай облысы | M97: Микро кәсіпкерлік | N97: МҚ 1 шеңберінде кепілдендіру | O97: 45974.41088
A98: ЖК | B98: Жүнісов Қанат Тұқайұлы | C98: Инвестициялар | D98: Жүк автомобиль көлігінің қызметін ұйымдастыру | E98: Н-Тасымалдау және қоймалау | F98: 49410-Жүк автомобиль көлігінің қызметі | G98: "ForteBank" АҚ | H98: 17500000 | I98: 3642000 | J98: Абай облысы бойынша РФ | K98: Семей қ. | L98: Абай облысы | M98: Микро кәсіпкерлік | N98: МҚ 1 шеңберінде кепілдендіру | O98: 45978.39934
A99: ЖК | B99: Күркембаева атынан Күркембаева Арай Ғылымжанқызы қатысты | C99: Инвестициялар | D99: Жүк автомобиль көлігінің қызметін ұйымдастыру | E99: Н-Тасымалдау және қоймалау | F99: 49410-Жүк автомобиль көлігінің қызметі | G99: "Банк ЦентрКредит" АҚ | H99: 7000000 | I99: 3500000 | J99: Абай облысы бойынша РФ | K99: Үржар ауданы | L99: Абай облысы | M99: Микро кәсіпкерлік | N99: МҚ 1 шеңберінде кепілдендіру | O99: 46010.24594
A100: ЖШС | B100: DDG | C100: Инвестициялар | D100: Қандай да бір нақтылаусыз тауарлардың кең ассортиментімен көтерме сауда қызметін кеңейту | E100: G-Көтерме және бөлшек сауда; автомобильдер мен мотоциклдерді жөндеу | F100: 46909-Қандай да бір нақтылаусыз тауарлардың кең ассортиментін көтерме саудада сату | G100: "Алатау қалалық банкі" АҚ | H100: 20000000 | I100: 17000000 | J100: Абай облысы бойынша РФ | K100: Семей қ. | L100: Абай облысы | M100: Микро кәсіпкерлік | N100: МҚ 1 шеңберінде кепілдендіру | O100: 45987.24239
A101: ЖК | B101: Жабағина Ақмарал Қапсаттарқызы | C101: Инвестициялар | D101: Жалға беру қызметін кеңейту (қосалқы жалдау) және тұрғын үйлердегі меншікті немесе жалға алынған кіріктірілген, жапсарлас салынған тұрғын емес үй-жайларды басқару | E101: L-Жылжымайтын мүлікпен жасалатын операциялар | F101: 68206-Тұрғын үйлердегі меншікті немесе жалға алынған кіріктірілген, жапсарлас салынған тұрғын емес үй-жайларды жалдау (қосалқы жалдау) және басқару | G101: "Алатау қалалық банкі" АҚ | H101: 60000000 | I101: 31680000 | J101: Абай облысы бойынша РФ | K101: Семей қ. | L101: Абай облысы | M101: Шағын кәсіпкерлік | N101: МҚ 1 шеңберінде кепілдендіру | O101: 45987.39795
A102: ЖК | B102: Шажанханов НҰРЛАН МӘДЕТҰЛЫ ШАЖАНХАНОВ тұлғасында | C102: Айналым қаражатын толықтыру | D102: Жүк тасымалдары бойынша қызметті кеңейту | E102: Н-Тасымалдау және қоймалау | F102: 49410-Жүк автомобиль көлігінің қызметі | G102: "ForteBank" АҚ | H102: 20000000 | I102: 17000000 | J102: Абай облысы бойынша РФ | K102: Семей қ. | L102: Абай облысы | M102: Микро кәсіпкерлік | N102: МҚ 1 шеңберінде кепілдендіру | O102: 45987.46253
A103: ЖК | B103: Мулдагалиева Шолпан Сапаровна | C103: Айналым қаражатын толықтыру | D103: Сауда саласындағы қызметті кеңейту | E103: G-Көтерме және бөлшек сауда; автомобильдер мен мотоциклдерді жөндеу | F103: 47111-Сауда объектілері болып табылатын, сауда алаңы 2000 шаршы метрден аспайтын мамандандырылмаған дүкендерде негізінен тамақ өнімдерін, сусындар мен темекі өнімдерін бөлшек саудада сату. м | G103: "Банк ЦентрКредит" АҚ | H103: 4000000 | I103: 2000000 | J103: Абай облысы бойынша РФ | K103: Семей қ. | L103: Абай облысы | M103: Микро кәсіпкерлік | N103: МҚ 1 шеңберінде кепілдендіру | O103: 45987.53441
A104: ЖК | B104: Ибраева БОТА МАҚСАТҚЫЗЫ Ибраева тұлғасында | C104: Инвестициялар | D104: Мамандандырылмаған дүкендерде өзге де бөлшек сауда қызметін ұйымдастыру | E104: G-Көтерме және бөлшек сауда; автомобильдер мен мотоциклдерді жөндеу | F104: 47191-Сауда объектілері болып табылатын, сауда алаңы 2000 шаршы метрден аспайтын мамандандырылмаған дүкендердегі басқа бөлшек сауда. м | G104: "Алатау қалалық банкі" АҚ | H104: 16000000 | I104: 13600000 | J104: Абай облысы бойынша РФ | K104: Семей қ. | L104: Абай облысы | M104: Микро кәсіпкерлік | N104: МҚ 1 шеңберінде кепілдендіру | O104: 45988.41261
A105: ЖК | B105: Болатов Рахат Қанатұлы | C105: Инвестициялар | D105: Ұзақ сақталмайтын нан-тоқаш және ұннан жасалған кондитерлік өнімдер өндірісінің қызметін ұйымдастыру | E105: C-Өңдеуші өнеркәсіп | F105: 10710- Қысқа мерзімді сақтауға арналған нан-тоқаш және ұннан жасалған кондитерлік өнімдер өндірісі | G105: "Банк ЦентрКредит" АҚ | H105: 80000000 | I105: 33072482 | J105: Абай облысы бойынша РФ | K105: Семей қ. | L105: Абай облысы | M105: Микро кәсіпкерлік | N105: МҚ 1 шеңберінде кепілдендіру | O105: 45989.16569
A106: ЖК | B106: Базарбаева Роза Базарбаева Роза Темірбайқызы тұлғасында | C106: Айналым қаражатын толықтыру | D106: Өзге де бөлшек сауда саласындағы қызметті кеңейту | E106: G-Көтерме және бөлшек сауда; автомобильдер мен мотоциклдерді жөндеу | F106: 47191-Сауда объектілері болып табылатын, сауда алаңы 2000 шаршы метрден аспайтын мамандандырылмаған дүкендердегі басқа бөлшек сауда. м | G106: "Алатау қалалық банкі" АҚ | H106: 20000000 | I106: 17000000 | J106: Абай облысы бойынша РФ | K106: Семей қ. | L106: Абай облысы | M106: Микро кәсіпкерлік | N106: МҚ 1 шеңберінде кепілдендіру | O106: 45989.51553
A107: ЖК | B107: Линник Юрий Андреевич | C107: Инвестициялар | D107: Өзге де бөлшек сауда қызметін ұйымдастыру | E107: G-Көтерме және бөлшек сауда; автомобильдер мен мотоциклдерді жөндеу | F107: 47191-Сауда объектілері болып табылатын, сауда алаңы 2000 шаршы метрден аспайтын мамандандырылмаған дүкендердегі басқа бөлшек сауда. м | G107: "Банк ЦентрКредит" АҚ | H107: 31500000 | I107: 15750000 | J107: Абай облысы бойынша РФ | K107: Семей қ. | L107: Абай облысы | M107: Микро кәсіпкерлік | N107: МҚ 1 шеңберінде кепілдендіру | O107: 45992.15705
A108: ЖК | B108: Кәрібаева Г атынан Кәрібаева Гүлназ Мүсілманқұлқызы | C108: Инвестициялар | D108: Нарық конъюнктурасын зерттеу қызметін ұйымдастыру және қоғамдық пікірді зерделеу | E108: M-Кәсіби, ғылыми және техникалық қызмет | F108: 73200-Нарық конъюнктурасын зерттеу және қоғамдық пікірді зерттеу | G108: "Еуразиялық банк" АҚ | H108: 20000000 | I108: 17000000 | J108: Абай облысы бойынша РФ | K108: Семей қ. | L108: Абай облысы | M108: Микро кәсіпкерлік | N108: МҚ 1 шеңберінде кепілдендіру | O108: 45994.22225
A109: ЖК | B109: АСҚАТОВА ҚЫРМЫЗЫ РЫМБЕКҚЫЗЫ | C109: Инвестициялар | D109: Автомобильдерге техникалық қызмет көрсету және жөндеу қызметін кеңейту | E109: G-Көтерме және бөлшек сауда; автомобильдер мен мотоциклдерді жөндеу | F109: 45201-Жол бойындағы жолақта орналасқан техникалық қызмет көрсету станциялары жүргізетіндерді қоспағанда, автокөліктерге техникалық қызмет көрсету және жөндеу | G109: "Еуразиялық банк" АҚ | H109: 19000000 | I109: 16150000 | J109: Абай облысы бойынша РФ | K109: Семей қ. | L109: Абай облысы | M109: Микро кәсіпкерлік | N109: МҚ 1 шеңберінде кепілдендіру | O109: 45994.38832
A110: ЖК | B110: Линник Юрий Андреевич | C110: Инвестициялар | D110: Сауда саласындағы қызметті кеңейту | E110: G-Көтерме және бөлшек сауда; автомобильдер мен мотоциклдерді жөндеу | F110: 47191-Сауда объектілері болып табылатын, сауда алаңы 2000 шаршы метрден аспайтын мамандандырылмаған дүкендердегі басқа бөлшек сауда. м | G110: "Еуразиялық банк" АҚ | H110: 11000000 | I110: 9350000 | J110: Абай облысы бойынша РФ | K110: Семей қ. | L110: Абай облысы | M110: Микро кәсіпкерлік | N110: МҚ 1 шеңберінде кепілдендіру | O110: 45994.45836
A111: ЖК | B111: Шалғынбаев в лице ШАЛГЫНБАЕВА АЗАМАТА ТАЛҒАТҰЛЫ | C111: Инвестициялар | D111: Білім беру саласындағы қызметті кеңейту | E111: P-Білім беру | F111: 85609-Білім беру саласындағы өзге де қосалқы қызмет | G111: "Алатау қалалық банкі" АҚ | H111: 20000000 | I111: 17000000 | J111: Абай облысы бойынша РФ | K111: Астана қ. | L111: Астана қ. | M111: Микро кәсіпкерлік | N111: МҚ 1 шеңберінде кепілдендіру | O111: 45995.41391
A112: ЖК | B112: Шәкіртова Айгүл Әбілқасымқызы | C112: Инвестициялар | D112: Сауда саласындағы қызметті кеңейту | E112: G-Көтерме және бөлшек сауда; автомобильдер мен мотоциклдерді жөндеу | F112: 47211-Сауда объектілері болып табылатын, сауда алаңы 2000 шаршы метрден аспайтын мамандандырылған дүкендерде жемістер мен көкөністерді бөлшек саудада сату. м | G112: "Еуразиялық банк" АҚ | H112: 9000000 | I112: 7650000 | J112: Абай облысы бойынша РФ | K112: Семей қ. | L112: Абай облысы | M112: Микро кәсіпкерлік | N112: МҚ 1 шеңберінде кепілдендіру | O112: 45999.46894
A113: ЖШС | B113: "PROGRESS LTD" фирмасы | C113: Инвестициялар | D113: Өзге де құрылыс-монтаждау жұмыстары саласындағы қызметті кеңейту | E113: F-Құрылыс | F113: 43298-Басқа топтамаларға енгізілмеген өзге де құрылыс-монтаждау жұмыстары | G113: "Еуразиялық банк" АҚ | H113: 44000000 | I113: 37400000 | J113: Абай облысы бойынша РФ | K113: Алматы қ. | L113: Алматы қ. | M113: Микро кәсіпкерлік | N113: МҚ 1 шеңберінде кепілдендіру | O113: 46000.46878
A114: ЖК | B114: Баймуханова Мейрамгүл Толымханқызы | C114: Инвестициялар | D114: Сауда саласындағы бизнесті кеңейту | E114: G-Көтерме және бөлшек сауда; автомобильдер мен мотоциклдерді жөндеу | F114: 47111-Сауда объектілері болып табылатын, сауда алаңы 2000 шаршы метрден аспайтын мамандандырылмаған дүкендерде негізінен тамақ өнімдерін, сусындар мен темекі өнімдерін бөлшек саудада сату. м | G114: "Еуразиялық банк" АҚ | H114: 10000000 | I114: 8500000 | J114: Абай облысы бойынша РФ | K114: Семей қ. | L114: Абай облысы | M114: Микро кәсіпкерлік | N114: МҚ 1 шеңберінде кепілдендіру | O114: 46000.4974
A115: ЖК | B115: АЛИНОВА КЕНЖІБИКЕ ҚАСЕНҚЫЗЫ | C115: Инвестициялар | D115: Тұру қызметтерін көрсету саласындағы қызметті ұйымдастыру | E115: I-Тұру және тамақтану бойынша қызметтер көрсету | F115: 55101-Жол бойындағы жолақта орналасқан қонақүйлерді қоспағанда, мейрамханалары бар қонақүйлердің қызмет көрсетуі | G115: "Еуразиялық банк" АҚ | H115: 20000000 | I115: 17000000 | J115: Абай облысы бойынша РФ | K115: Семей қ. | L115: Абай облысы | M115: Микро кәсіпкерлік | N115: МҚ 1 шеңберінде кепілдендіру | O115: 46003.37711
A116: ЖК | B116: Жылқаева ДАРИЯ АЙТҚАЗЫҚЫЗЫ ЖЫЛҚАЕВА тұлғасында | C116: Инвестициялар | D116: Бөлшек сауда қызметін ұйымдастыру | E116: G-Көтерме және бөлшек сауда; автомобильдер мен мотоциклдерді жөндеу | F116: 47291-Сауда объектілері болып табылатын, сауда алаңы 2000 шаршы метрден аспайтын мамандандырылған дүкендерде азық-түліктің басқа бөлшек саудасы. м | G116: "Еуразиялық банк" АҚ | H116: 35000000 | I116: 29750000 | J116: Абай облысы бойынша РФ | K116: Семей қ. | L116: Абай облысы | M116: Микро кәсіпкерлік | N116: МҚ 1 шеңберінде кепілдендіру | O116: 46003.53544
A117: ЖК | B117: Құсайынова САЛТАНАТ САРМАНҚЫЗЫ ҚҰСАЙЫНОВА тұлғасында | C117: Инвестициялар | D117: Жалдау саласындағы қызметті кеңейту | E117: L-Жылжымайтын мүлікпен жасалатын операциялар | F117: 68201-Жалдау (қосалқы жалдау) және меншікті немесе жалға алынған тұрғын үй объектілерін басқару | G117: "Еуразиялық банк" АҚ | H117: 30000000 | I117: 25500000 | J117: Абай облысы бойынша РФ | K117: Семей қ. | L117: Абай облысы | M117: Микро кәсіпкерлік | N117: МҚ 1 шеңберінде кепілдендіру | O117: 46006.15975
A118: ЖК | B118: Төлеубаев РУСТАМ КҮМІСБАЙҰЛЫ ТӨЛЕУБАЕВ тұлғасында | C118: Инвестициялар | D118: Жүк автомобиль көлігінің қызметін ұйымдастыру | E118: Н-Тасымалдау және қоймалау | F118: 49410-Жүк автомобиль көлігінің қызметі | G118: "Еуразиялық банк" АҚ | H118: 50000000 | I118: 42500000 | J118: Абай облысы бойынша РФ | K118: Семей қ. | L118: Абай облысы | M118: Микро кәсіпкерлік | N118: МҚ 1 шеңберінде кепілдендіру | O118: 46008.5184
A119: ЖК | B119: ӘМІРХАНОВ А.А. в лице ӘМІРХАНОВА АҢСАРА АМАНГЕЛДІҰЛЫ | C119: Инвестициялар | D119: Өзге де көрсетілетін қызметтерді ұсыну саласындағы қызметті кеңейту | E119: S-Өзге де қызмет түрлерін ұсыну | F119: 96090-Басқа топтамаларға енгізілмеген, өзге де қызметтерді ұсыну | G119: "Еуразиялық банк" АҚ | H119: 65000000 | I119: 55250000 | J119: Абай облысы бойынша РФ | K119: Астана қ. | L119: Астана қ. | M119: Микро кәсіпкерлік | N119: МҚ 1 шеңберінде кепілдендіру | O119: 46009.46986
A120: ЖК | B120: КАРЛЫБАЕВ АЛМАС ЖУМАГАЗЫЕВИЧ | C120: Қайта қаржыландыру | D120: Жүк тасымалдау бойынша қызметті кеңейту | E120: Н-Тасымалдау және қоймалау | F120: 49410-Жүк автомобиль көлігінің қызметі | G120: "ForteBank" АҚ | H120: 34600000 | I120: 12520000 | J120: Абай облысы бойынша РФ | K120: Семей қ. | L120: Абай облысы | M120: Микро кәсіпкерлік | N120: МҚ 1 шеңберінде кепілдендіру | O120: 46010.15906
A121: ЖК | B121: Назымқызы Г в лице НАЗЫМҚЫЗЫ ГҮЛНҰР | C121: Инвестициялар | D121: Ағымдағы қызметті кеңейту | E121: C-Өңдеуші өнеркәсіп | F121: 18120-Баспа өндірісінің басқа түрлері | G121: "Қазақстан Халық Банкі" АҚ | H121: 5000000 | I121: 3500000 | J121: Абай облысы бойынша РФ | K121: Абай ауданы | L121: Абай облысы | M121: Микро кәсіпкерлік | N121: МҚ 1 шеңберінде кепілдендіру | O121: 46010.49862
A122: ЖК | B122: ҚҰСАЙЫНОВ БОЛАТ ЖҰМАТАЙҰЛЫ | C122: Инвестициялар | D122: Жылжымайтын мүлікті жалға беру жөніндегі қызметті кеңейту | E122: L-Жылжымайтын мүлікпен жасалатын операциялар | F122: 68201-Жалдау (қосалқы жалдау) және меншікті немесе жалға алынған тұрғын үй объектілерін басқару | G122: "Еуразиялық банк" АҚ | H122: 50000000 | I122: 42500000 | J122: Абай облысы бойынша РФ | K122: Семей қ. | L122: Абай облысы | M122: Микро кәсіпкерлік | N122: МҚ 1 шеңберінде кепілдендіру | O122: 46013.48135
A123: ЖК | B123: Сламбаев Каныш Доненбекович | C123: Инвестициялар | D123: Тамақпен қамтамасыз ету жөніндегі қызметті кеңейту | E123: I-Тұру және тамақтану бойынша қызметтер көрсету | F123: 56299-Басқа топтамаларға енгізілмеген, тамақтандыруды қамтамасыз ету жөніндегі өзге де қызмет | G123: "Еуразиялық банк" АҚ | H123: 100000000 | I123: 85000000 | J123: Абай облысы бойынша РФ | K123: Семей қ. | L123: Абай облысы | M123: Микро кәсіпкерлік | N123: МҚ 1 шеңберінде кепілдендіру | O123: 46013.48142
A124: ЖК | B124: Жөкенова Лаура Айтқазықызы | C124: Инвестициялар | D124: Сауда саласындағы қызметті кеңейту | E124: G-Көтерме және бөлшек сауда; автомобильдер мен мотоциклдерді жөндеу | F124: 47291-Сауда объектілері болып табылатын, сауда алаңы 2000 шаршы метрден аспайтын мамандандырылған дүкендерде азық-түліктің басқа бөлшек саудасы. м | G124: "Еуразиялық банк" АҚ | H124: 50000000 | I124: 42500000 | J124: Абай облысы бойынша РФ | K124: Семей қ. | L124: Абай облысы | M124: Микро кәсіпкерлік | N124: МҚ 1 шеңберінде кепілдендіру | O124: 46013.51392
A125: ЖШС | B125: ОТБАСЫГИДРОГЕОЛОГИЯ | C125: Айналым қаражатын толықтыру | D125: Сусындар өндіру жөніндегі қызметті кеңейту | E125: C-Өңдеуші өнеркәсіп | F125: 11070-Алкогольсіз сусындар, минералды сулар және басқа бөтелкедегі сулар өндірісі | G125: "Қазақстан Халық Банкі" АҚ | H125: 50000000 | I125: 21688792 | J125: Абай облысы бойынша РФ | K125: Бородулиха ауданы | L125: Абай облысы | M125: Орта кәсіпкерлік | N125: МҚ 1 шеңберінде кепілдендіру | O125: 46020.52127
A126: ЖШС | B126: ОТБАСЫГИДРОГЕОЛОГИЯ | C126: Инвестициялар | D126: Сусындар өндірісі саласындағы қызметті кеңейту | E126: C-Өңдеуші өнеркәсіп | F126: 11070-Алкогольсіз сусындар, минералды сулар және басқа бөтелкедегі сулар өндірісі | G126: "Қазақстан Халық Банкі" АҚ | H126: 70000000 | I126: 30364308 | J126: Абай облысы бойынша РФ | K126: Бородулиха ауданы | L126: Абай облысы | M126: Орта кәсіпкерлік | N126: МҚ 1 шеңберінде кепілдендіру | O126: 46020.52133
A127: ЖК | B127: Жүнісжанов Н в лице ЖҮНІСЖАНОВА НҰРБҰЛАНА НҰРҒАЗЫҰЛЫ | C127: Инвестициялар | D127: Тұру бойынша қызметтер көрсету қызметін кеңейту | E127: I-Тұру және тамақтану бойынша қызметтер көрсету | F127: 55101-Жол бойындағы жолақта орналасқан қонақүйлерді қоспағанда, мейрамханалары бар қонақүйлердің қызмет көрсетуі | G127: "Қазақстан Халық Банкі" АҚ | H127: 15000000 | I127: 9000000 | J127: Абай облысы бойынша РФ | K127: Абай ауданы | L127: Абай облысы | M127: Микро кәсіпкерлік | N127: МҚ 1 шеңберінде кепілдендіру | O127: 46013.589
A128: ЖШС | B128: МОНТАЖДАУШЫЛАР | C128: Инвестициялар | D128: Инженерлік-техникалық жобалау саласындағы қызметті кеңейту | E128: M-Кәсіби, ғылыми және техникалық қызмет | F128: 71121-Атом өнеркәсібі және атом энергетикасы объектілерін қоспағанда, инженерлік-техникалық жобалау саласындағы қызмет | G128: "Еуразиялық банк" АҚ | H128: 50000000 | I128: 42500000 | J128: Абай облысы бойынша РФ | K128: Семей қ. | L128: Абай облысы | M128: Шағын кәсіпкерлік | N128: МҚ 1 шеңберінде кепілдендіру | O128: 46014.30636
A129: ЖК | B129: Рахатов Ұлықбек Айдарұлы | C129: Инвестициялар | D129: Жүк автомобиль көлігінің қызметін ұйымдастыру | E129: Н-Тасымалдау және қоймалау | F129: 49410-Жүк автомобиль көлігінің қызметі | G129: "Алатау қалалық банкі" АҚ | H129: 20000000 | I129: 17000000 | J129: Абай облысы бойынша РФ | K129: Семей қ. | L129: Абай облысы | M129: Микро кәсіпкерлік | N129: МҚ 1 шеңберінде кепілдендіру | O129: 46014.30559
A130: ЖК | B130: Нурдаулет в лице ЖӘНІБЕКОВА НҰРДӘУЛЕТА НҰРЛАНҰЛЫ | C130: Инвестициялар | D130: Өзге де бөлшек сауданың үлестестігін ұйымдастыру | E130: G-Көтерме және бөлшек сауда; автомобильдер мен мотоциклдерді жөндеу | F130: 47191-Сауда объектілері болып табылатын, сауда алаңы 2000 шаршы метрден аспайтын мамандандырылмаған дүкендердегі басқа бөлшек сауда. м | G130: "Еуразиялық банк" АҚ | H130: 50000000 | I130: 42500000 | J130: Абай облысы бойынша РФ | K130: Бородулиха ауданы | L130: Абай облысы | M130: Микро кәсіпкерлік | N130: МҚ 1 шеңберінде кепілдендіру | O130: 46014.53127
A131: ЖК | B131: ШӘКІРТОВ СЕРБОЛСЫН | C131: Инвестициялар | D131: Бөлшек сауда қызметін ұйымдастыру | E131: G-Көтерме және бөлшек сауда; автомобильдер мен мотоциклдерді жөндеу | F131: 47111-Сауда объектілері болып табылатын, сауда алаңы 2000 шаршы метрден аспайтын мамандандырылмаған дүкендерде негізінен тамақ өнімдерін, сусындар мен темекі өнімдерін бөлшек саудада сату. м | G131: "Еуразиялық банк" АҚ | H131: 40000000 | I131: 34000000 | J131: Абай облысы бойынша РФ | K131: Семей қ. | L131: Абай облысы | M131: Микро кәсіпкерлік | N131: МҚ 1 шеңберінде кепілдендіру | O131: 46015.30705
A132: ЖК | B132: РАҚЫШЕВ ҚУАНЫШ ҚУАНЫШҰЛЫ | C132: Инвестициялар | D132: Өзге де қызмет түрлерін ұсыну қызметін ұйымдастыру | E132: S-Өзге де қызмет түрлерін ұсыну | F132: 96090-Басқа топтамаларға енгізілмеген, өзге де қызметтерді ұсыну | G132: "Банк"Bank RBK" АҚ | H132: 23526964 | I132: 19997919 | J132: Абай облысы бойынша РФ | K132: Семей қ. | L132: Абай облысы | M132: Микро кәсіпкерлік | N132: МҚ 1 шеңберінде кепілдендіру | O132: 46015.46461
A133: ЖК | B133: Мәриям Жабағина Роза Рахымқызының тұлғасында | C133: Инвестициялар | D133: Тамақтандыруды қамтамасыз ету бойынша басқа да іс-шараларды ұйымдастыру | E133: I-Тұру және тамақтану бойынша қызметтер көрсету | F133: 56299-Басқа топтамаларға енгізілмеген, тамақтандыруды қамтамасыз ету жөніндегі өзге де қызмет | G133: "Еуразиялық банк" АҚ | H133: 100000000 | I133: 85000000 | J133: Абай облысы бойынша РФ | K133: Астана қ. | L133: Астана қ. | M133: Микро кәсіпкерлік | N133: МҚ 1 шеңберінде кепілдендіру | O133: 46015.48058
A134: ЖК | B134: Салтанат атынан БЕРДАХАНОВА САЛТАНАТ МАНСҰРҚЫЗЫ қатысты | C134: Инвестициялар | D134: Өзге де жеке қызметтерді көрсету қызметін ұйымдастыру | E134: S-Өзге де қызмет түрлерін ұсыну | F134: 96090-Басқа топтамаларға енгізілмеген, өзге де қызметтерді ұсыну | G134: "Еуразиялық банк" АҚ | H134: 35000000 | I134: 29750000 | J134: Абай облысы бойынша РФ | K134: Қызылорда қ. | L134: Қызылорда облысы | M134: Микро кәсіпкерлік | N134: МҚ 1 шеңберінде кепілдендіру | O134: 46016.16246
A135: ЖК | B135: ТЕМІРХАНОВ ӘДІЛЕТ БАҚЫТБЕКҰЛЫ | C135: Инвестициялар | D135: Қонақүйлердің қызмет көрсету қызметін ұйымдастыруы | E135: I-Тұру және тамақтану бойынша қызметтер көрсету | F135: 55102-Жол бойындағы жолақта орналасқан қонақүйлерді қоспағанда, мейрамханалары жоқ қонақүйлердің қызмет көрсетуі | G135: "Қазақстан Халық Банкі" АҚ | H135: 700000000 | I135: 387549300.6 | J135: Абай облысы бойынша РФ | K135: Семей қ. | L135: Абай облысы | M135: Микро кәсіпкерлік | N135: МҚ 1 шеңберінде кепілдендіру | O135: 46016.28839
A136: ЖШС | B136: СМЖ Көшбасшысы 21 | C136: Инвестициялар | D136: Жүк автомобиль көлігінің қызметін кеңейту | E136: Н-Тасымалдау және қоймалау | F136: 49410-Жүк автомобиль көлігінің қызметі | G136: "Алатау қалалық банкі" АҚ | H136: 20000000 | I136: 17000000 | J136: Абай облысы бойынша РФ | K136: Семей қ. | L136: Абай облысы | M136: Микро кәсіпкерлік | N136: МҚ 1 шеңберінде кепілдендіру | O136: 46016.32033
A137: ЖК | B137: Шрайнер Ирина Николаевна | C137: Инвестициялар | D137: Жүк автомобиль көлігінің қызметін кеңейту | E137: Н-Тасымалдау және қоймалау | F137: 49410-Жүк автомобиль көлігінің қызметі | G137: "Қазақстан Халық Банкі" АҚ | H137: 19710000 | I137: 13797000 | J137: Абай облысы бойынша РФ | K137: СЕМЕЙ Қ.А. | L137: Абай облысы | M137: Микро кәсіпкерлік | N137: МҚ 1 шеңберінде кепілдендіру | O137: 46017.31546
A138: ЖК | B138: Байшимирова Л.Ж. атынан Байшимирова Лаура Жұмабекқызы | C138: Айналым қаражатын толықтыру | D138: Сағаттар мен зергерлік бұйымдардың бөлшек саудасын кеңейту | E138: G-Көтерме және бөлшек сауда; автомобильдер мен мотоциклдерді жөндеу | F138: 47771-Сауда алаңы 2000 шаршы метрден аспайтын сауда объектілері болып табылатын мамандандырылған дүкендерде сағаттар мен зергерлік бұйымдарды бөлшек саудада сату. м | G138: "Еуразиялық банк" АҚ | H138: 100000000 | I138: 85000000 | J138: Абай облысы бойынша РФ | K138: Алматы қ. | L138: Алматы қ. | M138: Микро кәсіпкерлік | N138: МҚ 1 шеңберінде кепілдендіру | O138: 46017.38204
A139: ЖК | B139: СОВЕТОВ Р.М. атынан СОВЕТОВ РАУАН МҰХТАРБЕКҰЛЫ | C139: Инвестициялар | D139: Жүк автомобиль көлігінің қызметін кеңейту | E139: Н-Тасымалдау және қоймалау | F139: 49410-Жүк автомобиль көлігінің қызметі | G139: "Қазақстан Халық Банкі" АҚ | H139: 30000000 | I139: 25500000 | J139: Абай облысы бойынша РФ | K139: СЕМЕЙ Қ.А. | L139: Абай облысы | M139: Микро кәсіпкерлік | N139: МҚ 1 шеңберінде кепілдендіру | O139: 46017.45742
A140: ЖК | B140: САЛИБЕКОВА ДИНАРА САЙФУЛЛАҚЫЗЫ | C140: Инвестициялар | D140: Алкогольсіз сусындар, минералды сулар және басқа да бөтелкедегі сулар өндірісінің қызметін ұйымдастыру | E140: C-Өңдеуші өнеркәсіп | F140: 11070-Алкогольсіз сусындар, минералды сулар және басқа бөтелкедегі сулар өндірісі | G140: "Банк ЦентрКредит" АҚ | H140: 200000000 | I140: 32000000 | J140: Абай облысы бойынша РФ | K140: Семей қ. | L140: Абай облысы | M140: Шағын кәсіпкерлік | N140: МҚ 1 шеңберінде кепілдендіру | O140: 46017.44391
A141: ЖК | B141: Иксанов Арман Талғатұлының тұлғасында IX Market | C141: Инвестициялар | D141: Тамақпен қамтамасыз ету жөніндегі қызметті ұйымдастыру | E141: I-Тұру және тамақтану бойынша қызметтер көрсету | F141: 56299-Басқа топтамаларға енгізілмеген, тамақтандыруды қамтамасыз ету жөніндегі өзге де қызмет | G141: "Еуразиялық банк" АҚ | H141: 100000000 | I141: 85000000 | J141: Абай облысы бойынша РФ | K141: Семей қ. | L141: Абай облысы | M141: Микро кәсіпкерлік | N141: МҚ 1 шеңберінде кепілдендіру | O141: 46017.53545
A142: ЖК | B142: ЖАКИЖАНОВА АЙДАНА КАЙЫРТАЕВНА | C142: Инвестициялар | D142: Дайын тамақ өнімдерін өндіру қызметін ұйымдастыру | E142: C-Өңдеуші өнеркәсіп | F142: 10850-Дайын тамақ өнімдерін өндіру | G142: "Алатау қалалық банкі" АҚ | H142: 20000000 | I142: 17000000 | J142: Абай облысы бойынша РФ | K142: Семей қ. | L142: Абай облысы | M142: Микро кәсіпкерлік | N142: МҚ 1 шеңберінде кепілдендіру | O142: 46020.44209
A143: ЖК | B143: БАЗАРБАЕВА БАҒИЛА ЖҰМАБЕКҚЫЗЫ | C143: Айналым қаражатын толықтыру | D143: Сауда саласындағы қызметті кеңейту | E143: G-Көтерме және бөлшек сауда; автомобильдер мен мотоциклдерді жөндеу | F143: 47772-Сауда алаңы 2000 шаршы метрден асатын, сауда объектілері болып табылатын мамандандырылған дүкендерде сағаттар мен зергерлік бұйымдарды бөлшек саудада сату.м (2000 шаршы метр және одан жоғары) | G143: "Еуразиялық банк" АҚ | H143: 100000000 | I143: 85000000 | J143: Абай облысы бойынша РФ | K143: Алматы қ. | L143: Алматы қ. | M143: Шағын кәсіпкерлік | N143: МҚ 1 шеңберінде кепілдендіру | O143: 46020.5103
A144: ЖШС | B144: ALENTOUR | C144: Айналым қаражатын толықтыру | D144: Туристік агенттіктің қызметін кеңейту | E144: N-Әкімшілік және қосалқы қызмет көрсету саласындағы қызмет | F144: 79110-Туристік агенттіктердің қызметі | G144: "Еуразиялық банк" АҚ | H144: 100000000 | I144: 85000000 | J144: Абай облысы бойынша РФ | K144: Семей қ. | L144: Абай облысы | M144: Шағын кәсіпкерлік | N144: МҚ 1 шеңберінде кепілдендіру | O144: 46021.17503
A145: ЖШС | B145: ШИПАГЕР-СЕМЕЙ | C145: Қайта қаржыландыру | D145: Дәрігерлік практика қызметін кеңейту | E145: Q-Денсаулық сақтау және халыққа әлеуметтік қызмет көрсету | F145: 86220-Арнайы дәрігерлік практика | G145: "Нұрбанк" АҚ | H145: 84527515 | I145: 28030000 | J145: Абай облысы бойынша РФ | K145: Семей қ. | L145: Абай облысы | M145: Микро кәсіпкерлік | N145: МҚ 1 шеңберінде кепілдендіру | O145: 46021.24039
A146: ЖШС | B146: TOMIRIS YDS | C146: Инвестициялар | D146: Мектепке дейінгі білім беру қызметін ұйымдастыру | E146: P-Білім беру | F146: 85100-Мектепке дейінгі білім беру | G146: "Банк ЦентрКредит" АҚ | H146: 39000000 | I146: 18000000 | J146: Абай облысы бойынша РФ | K146: Семей қ. | L146: Абай облысы | M146: Микро кәсіпкерлік | N146: МҚ 1 шеңберінде кепілдендіру | O146: 46021.48266
A147: ЖК | B147: МҰРАТ АҚМАРАЛ ЕРЛАНҚЫЗЫ | C147: Инвестициялар | D147: Ағаш бұйымдарын өндіру жөніндегі қызметті ұйымдастыру | E147: C-Өңдеуші өнеркәсіп | F147: 16291-Әр түрлі ағаштан жасалған бұйымдар өндірісі | G147: "Банк ЦентрКредит" АҚ | H147: 30000000 | I147: 15000000 | J147: Абай облысы бойынша РФ | K147: Семей қ. | L147: Абай облысы | M147: Микро кәсіпкерлік | N147: МҚ 1 шеңберінде кепілдендіру | O147: 46021.52434
A148: ЖК | B148: ТАСМАҒАНБЕТОВ тұлғасында ТАСМАҒАНБЕТОВ МҰХТАР ТОҚТАРҰЛЫ | C148: Инвестициялар | D148: Мектепке дейінгі білім беру саласындағы қызметті ұйымдастыру | E148: P-Білім беру | F148: 85100-Мектепке дейінгі білім беру | G148: "Банк ЦентрКредит" АҚ | H148: 45000000 | I148: 22500000 | J148: Абай облысы бойынша РФ | K148: Семей қ. | L148: Абай облысы | M148: Микро кәсіпкерлік | N148: МҚ 1 шеңберінде кепілдендіру | O148: 46021.5292
A149: ЖК | B149: Әйгерім, Байғұнысов Бағдат Талғатұлы тұлғасында | C149: Инвестициялар | D149: Жүк тасымалдау бизнесін кеңейту | E149: Н-Тасымалдау және қоймалау | F149: 49410-Жүк автомобиль көлігінің қызметі | G149: "ForteBank" АҚ | H149: 50000000 | I149: 42500000 | J149: Абай облысы бойынша РФ | K149: Үржар ауданы | L149: Абай облысы | M149: Микро кәсіпкерлік | N149: МҚ 1 шеңберінде кепілдендіру | O149: 46022.16415
A150: ЖК | B150: Акылбаев Арыстан | C150: Инвестициялар | D150: Мүлікті жалға беру жөніндегі қызметті кеңейту | E150: L-Жылжымайтын мүлікпен жасалатын операциялар | F150: 68204-Жеке сауда жылжымайтын мүлігін және сауда қызметіндегі көпфункционалды кешендерді жалдау және басқару | G150: "Нұрбанк" АҚ | H150: 12000000 | I150: 10200000 | J150: Абай облысы бойынша РФ | K150: Семей қ. | L150: Абай облысы | M150: Микро кәсіпкерлік | N150: МҚ 1 шеңберінде кепілдендіру | O150: 46022.43058
A151: ЖШС | B151: TOMIRIS YDS | C151: Айналым қаражатын толықтыру | D151: Мектепке дейінгі білім беру қызметін кеңейту | E151: P-Білім беру | F151: 85100-Мектепке дейінгі білім беру | G151: "Банк ЦентрКредит" АҚ | H151: 15000000 | I151: 7000000 | J151: Абай облысы бойынша РФ | K151: Семей қ. | L151: Абай облысы | M151: Микро кәсіпкерлік | N151: МҚ 1 шеңберінде кепілдендіру | O151: 46022.47016
A152: ЖК | B152: Жайлау атынан Аятова Мәди Жайлаубекұлы | C152: Инвестициялар | D152: Жүк тасымалдау қызметін кеңейту | E152: Н-Тасымалдау және қоймалау | F152: 49410-Жүк автомобиль көлігінің қызметі | G152: "Банк ЦентрКредит" АҚ | H152: 36000000 | I152: 12960000 | J152: РФ Ақмола облысы бойынша | K152: Целиноград ауданы | L152: Ақмола облысы | M152: Микро кәсіпкерлік | N152: МҚ 1 шеңберінде кепілдендіру | O152: 45764.25765
A153: ЖК | B153: Z-Zone атынан Өмірбек Жансерік қатысты | C153: Инвестициялар | D153: Өзге жиһаз өндірісін кеңейту үшін жабдықтар сатып алу | E153: C-Өңдеуші өнеркәсіп | F153: 31090-Басқа жиһаз өндірісі | G153: "Банк ЦентрКредит" АҚ | H153: 13000000 | I153: 6500000 | J153: РФ Ақмола облысы бойынша | K153: Целиноград ауданы | L153: Ақмола облысы | M153: Микро кәсіпкерлік | N153: МҚ 1 шеңберінде кепілдендіру | O153: 45776.4782
A154: ЖК | B154: Z-Zone атынан Өмірбек Жансерік қатысты | C154: Айналым қаражатын толықтыру | D154: Басқа жиһаз өндірісі үшін айналым қаражатын толықтыру | E154: C-Өңдеуші өнеркәсіп | F154: 31090-Басқа жиһаз өндірісі | G154: "Банк ЦентрКредит" АҚ | H154: 35000000 | I154: 17344000 | J154: РФ Ақмола облысы бойынша | K154: Целиноград ауданы | L154: Ақмола облысы | M154: Микро кәсіпкерлік | N154: МҚ 1 шеңберінде кепілдендіру | O154: 45777.42375
A155: ЖШС | B155: Альянс Трейд LTD | C155: Инвестициялар | D155: Цемент, құм және қиыршық тас саудасы бойынша қызметті кеңейту | E155: G-Көтерме және бөлшек сауда; автомобильдер мен мотоциклдерді жөндеу | F155: 46732-Цементті, құмды және қиыршық тасты көтерме саудада сату | G155: "Банк ЦентрКредит" АҚ | H155: 200000000 | I155: 74000000 | J155: РФ Ақмола облысы бойынша | K155: қосшы қаласы | L155: Ақмола облысы | M155: Шағын кәсіпкерлік | N155: МҚ 1 шеңберінде кепілдендіру | O155: 45782.4043
A156: ЖК | B156: РАЙХАН в лице Кенжебек Райхангүл Бақытжанқызы | C156: Инвестициялар | D156: Дайын тамақ өнімдерін өндіру саласындағы қызметті дамыту. | E156: C-Өңдеуші өнеркәсіп | F156: 10850-Дайын тамақ өнімдерін өндіру | G156: "Банк ЦентрКредит" АҚ | H156: 11000000 | I156: 9240000 | J156: РФ Ақмола облысы бойынша | K156: Көкшетау қ. | L156: Ақмола облысы | M156: Микро кәсіпкерлік | N156: МҚ 1 шеңберінде кепілдендіру | O156: 45789.50177
A157: ЖШС | B157: CASPIAN LOGISTIC SOLUTIONS | C157: Айналым қаражатын толықтыру | D157: Көліктік-экспедициялық қызметтер бойынша қызметті кеңейту (ГФ1) | E157: Н-Тасымалдау және қоймалау | F157: 52291-Экспедиторлық қызметтер | G157: "ForteBank" АҚ | H157: 500000000 | I157: 246882229 | J157: РФ Ақмола облысы бойынша | K157: Ақтау қ. | L157: Маңғыстау облысы | M157: Орта кәсіпкерлік | N157: МҚ 1 шеңберінде кепілдендіру | O157: 45783.54107
A158: ЖК | B158: Исаев Қ.Т. Исаев Қайрат Тұрсынғалиұлының тұлғасында | C158: Инвестициялар | D158: Инвестициялар | E158: I-Тұру және тамақтану бойынша қызметтер көрсету | F158: 55200-Демалыс күндеріне және қысқа мерзімді тұрудың өзге де кезеңдеріне тұрғын үй беру | G158: "Банк ЦентрКредит" АҚ | H158: 130000000 | I158: 39000000 | J158: РФ Ақмола облысы бойынша | K158: Бурабай ауданы | L158: Ақмола облысы | M158: Шағын кәсіпкерлік | N158: МҚ 1 шеңберінде кепілдендіру | O158: 45789.28786
A159: ЖК | B159: Алихан в лице БАЙЕГІЗ ӘЛІМЖАН ҚАРАБАЙҰЛЫ | C159: Инвестициялар | D159: Пластмасса бұйымдарын өндіру жөніндегі қызметті кеңейту үшін жабдықтар сатып алу | E159: C-Өңдеуші өнеркәсіп | F159: 22231-Құрылыста қолданылатын пластмасса бұйымдарын өндіру | G159: "Банк ЦентрКредит" АҚ | H159: 29000000 | I159: 6631000 | J159: РФ Ақмола облысы бойынша | K159: қосшы қаласы | L159: Ақмола облысы | M159: Микро кәсіпкерлік | N159: МҚ 1 шеңберінде кепілдендіру | O159: 45791.44933
A160: ЖК | B160: Алихан в лице БАЙЕГІЗ ӘЛІМЖАН ҚАРАБАЙҰЛЫ | C160: Айналым қаражатын толықтыру | D160: Пластмасса бұйымдарын өндіру жөніндегі қызметті кеңейту үшін айналым қаражатын толықтыру | E160: C-Өңдеуші өнеркәсіп | F160: 22231-Құрылыста қолданылатын пластмасса бұйымдарын өндіру | G160: "Банк ЦентрКредит" АҚ | H160: 8000000 | I160: 1829000 | J160: РФ Ақмола облысы бойынша | K160: қосшы қаласы | L160: Ақмола облысы | M160: Микро кәсіпкерлік | N160: МҚ 1 шеңберінде кепілдендіру | O160: 45791.50697
A161: ЖШС | B161: ADS STROI | C161: Инвестициялар | D161: Құрылыс жабдықтарын жалға беру саласындағы қызметті дамыту. | E161: F-Құрылыс | F161: 43993-Оператормен құрылыс жабдықтарын жалға алу | G161: "Банк ЦентрКредит" АҚ | H161: 150000000 | I161: 127500000 | J161: РФ Ақмола облысы бойынша | K161: Зеренді ауданы | L161: Ақмола облысы | M161: Микро кәсіпкерлік | N161: МҚ 1 шеңберінде кепілдендіру | O161: 45791.5876
A162: ЖК | B162: USM Group атынан Усманов Сәлім Миразизұлы қатысты | C162: Инвестициялар | D162: Оператормен жүк тасымалдау қызметін және құрылыс жабдықтарын жалға беру қызметін кеңейту | E162: Н-Тасымалдау және қоймалау | F162: 49410-Жүк автомобиль көлігінің қызметі | G162: "Банк ЦентрКредит" АҚ | H162: 40000000 | I162: 20000000 | J162: РФ Ақмола облысы бойынша | K162: Ғабит Мүсірепов атындағы аудан | L162: Солтүстік Қазақстан облысы | M162: Микро кәсіпкерлік | N162: МҚ 1 шеңберінде кепілдендіру | O162: 45792.23488
A163: ЖК | B163: Тұрғын үй кешені АДЫРБЕКОВА А.С. атынан Адырбекова Әйгерім Серікқызы | C163: Инвестициялар | D163: Жүк тасымалдау қызметін кеңейту | E163: Н-Тасымалдау және қоймалау | F163: 49410-Жүк автомобиль көлігінің қызметі | G163: "Банк ЦентрКредит" АҚ | H163: 49000000 | I163: 24500000 | J163: РФ Ақмола облысы бойынша | K163: Астана қ. | L163: Астана қ. | M163: Микро кәсіпкерлік | N163: МҚ 1 шеңберінде кепілдендіру | O163: 45793.27434
A164: ЖШС | B164: OTAN 2024 | C164: Инвестициялар | D164: Қонақүйлер мен мейрамханалардың қызмет көрсету саласындағы қызметін дамыту. | E164: I-Тұру және тамақтану бойынша қызметтер көрсету | F164: 55101-Жол бойындағы жолақта орналасқан қонақүйлерді қоспағанда, мейрамханалары бар қонақүйлердің қызмет көрсетуі | G164: "Банк ЦентрКредит" АҚ | H164: 30000000 | I164: 15000000 | J164: РФ Ақмола облысы бойынша | K164: Бурабай ауданы | L164: Ақмола облысы | M164: Микро кәсіпкерлік | N164: МҚ 1 шеңберінде кепілдендіру | O164: 45799.40767
A165: ЖШС | B165: RD Group KZ | C165: Инвестициялар | D165: Оператормен құрылыс жабдықтарын жалға беру саласындағы қызметті дамыту. | E165: F-Құрылыс | F165: 43993-Оператормен құрылыс жабдықтарын жалға алу | G165: "Банк ЦентрКредит" АҚ | H165: 77429786 | I165: 32784650 | J165: РФ Ақмола облысы бойынша | K165: Зеренді ауданы | L165: Ақмола облысы | M165: Микро кәсіпкерлік | N165: МҚ 1 шеңберінде кепілдендіру | O165: 45799.40697
A166: ЖШС | B166: КӨКШЕТАУ ТЕМІРЖОЛ АУРУХАНАСЫ | C166: Инвестициялар | D166: Кең бейінді ауруханалардың қызметін дамыту. | E166: Q-Денсаулық сақтау және халыққа әлеуметтік қызмет көрсету | F166: 86101-Кең бейінді ауруханалар мен мамандандырылған ауруханалардың қызметі | G166: "Банк ЦентрКредит" АҚ | H166: 82000000 | I166: 41000000 | J166: РФ Ақмола облысы бойынша | K166: Көкшетау қ. | L166: Ақмола облысы | M166: Орта кәсіпкерлік | N166: МҚ 1 шеңберінде кепілдендіру | O166: 45804.54103
A167: ЖК | B167: Шаймұратов Д.А. атынан Шаймұратов Дамир Әділханұлы | C167: Инвестициялар | D167: Жүк тасымалдау қызметін кеңейту | E167: Н-Тасымалдау және қоймалау | F167: 49410-Жүк автомобиль көлігінің қызметі | G167: "Банк ЦентрКредит" АҚ | H167: 27000000 | I167: 13360000 | J167: РФ Ақмола облысы бойынша | K167: Көкшетау қ. | L167: Ақмола облысы | M167: Шағын кәсіпкерлік | N167: МҚ 1 шеңберінде кепілдендіру | O167: 45804.40011
A168: ЖШС | B168: Табрис 2020 | C168: Инвестициялар | D168: Жүк тасымалдау қызметін кеңейту | E168: Н-Тасымалдау және қоймалау | F168: 49410-Жүк автомобиль көлігінің қызметі | G168: "Банк ЦентрКредит" АҚ | H168: 45000000 | I168: 20700000 | J168: РФ Ақмола облысы бойынша | K168: Бурабай ауданы | L168: Ақмола облысы | M168: Микро кәсіпкерлік | N168: МҚ 1 шеңберінде кепілдендіру | O168: 45807.55641
A169: ЖШС | B169: КАРАТЭ ӘЛЕМІ | C169: Инвестициялар | D169: Инвестициялар | E169: P-Білім беру | F169: 85510-Спорт және демалыс саласындағы білім беру | G169: "Банк ЦентрКредит" АҚ | H169: 16800000 | I169: 1680000 | J169: РФ Ақмола облысы бойынша | K169: Көкшетау қ. | L169: Ақмола облысы | M169: Микро кәсіпкерлік | N169: МҚ 1 шеңберінде кепілдендіру | O169: 45811.44257
A170: ЖШС | B170: Viamedis Kosshy | C170: Инвестициялар | D170: Қосшы қаласында емхана құрылысы | E170: Q-Денсаулық сақтау және халыққа әлеуметтік қызмет көрсету | F170: 86220-Арнайы дәрігерлік практика | G170: "Қазақстан Халық Банкі" АҚ | H170: 3000000000 | I170: 2500000000 | J170: РФ Ақмола облысы бойынша | K170: қосшы қаласы | L170: Ақмола облысы | M170: Микро кәсіпкерлік | N170: МҚ 1 шеңберінде кепілдендіру | O170: 45819.55073
A171: ЖК | B171: RailwayService атынан Қайдаров Мүбарак Еркінұлы қатысты | C171: Инвестициялар | D171: Оператормен құрылыс жабдықтарын жалға беру қызметтерін көрсету бойынша қызметті ұйымдастыру | E171: F-Құрылыс | F171: 43993-Оператормен құрылыс жабдықтарын жалға алу | G171: "Банк ЦентрКредит" АҚ | H171: 52000000 | I171: 26000000 | J171: РФ Ақмола облысы бойынша | K171: Зеренді ауданы | L171: Ақмола облысы | M171: Микро кәсіпкерлік | N171: МҚ 1 шеңберінде кепілдендіру | O171: 45820.54239
A172: ЖК | B172: HellaGood Kokshetau атынан Абдрахманов Алдияр Ахметқалиұлы қатысты | C172: Инвестициялар | D172: Пошта және курьерлік қызмет саласындағы қызметті кеңейту | E172: Н-Тасымалдау және қоймалау | F172: 53200-Өзге де пошта және курьерлік қызмет | G172: "ForteBank" АҚ | H172: 19500000 | I172: 16575000 | J172: РФ Ақмола облысы бойынша | K172: Көкшетау қ. | L172: Ақмола облысы | M172: Микро кәсіпкерлік | N172: МҚ 1 шеңберінде кепілдендіру | O172: 45821.54587
A173: ЖК | B173: Smk_Group в лице ЖҮЗЖАСАР АИНА АСҚАРҚЫЗЫ | C173: Инвестициялар | D173: Оператормен құрылыс жабдықтарын жалға беру қызметтерін көрсету бойынша қызметті кеңейту | E173: F-Құрылыс | F173: 43993-Оператормен құрылыс жабдықтарын жалға алу | G173: "Банк ЦентрКредит" АҚ | H173: 57715000 | I173: 26090147.92 | J173: РФ Ақмола облысы бойынша | K173: Бурабай ауданы | L173: Ақмола облысы | M173: Микро кәсіпкерлік | N173: МҚ 1 шеңберінде кепілдендіру | O173: 45826.38059
A174: ЖК | B174: ШЫН. Қасымов Қуандық Сайынұлы атынан | C174: Инвестициялар | D174: Жүк тасымалдау қызметін кеңейту | E174: Н-Тасымалдау және қоймалау | F174: 49410-Жүк автомобиль көлігінің қызметі | G174: "Нұрбанк" АҚ | H174: 65900000 | I174: 53750000 | J174: РФ Ақмола облысы бойынша | K174: Бурабай ауданы | L174: Ақмола облысы | M174: Микро кәсіпкерлік | N174: МҚ 1 шеңберінде кепілдендіру | O174: 45828.21877
A175: ЖШС | B175: АБЗ-2024 | C175: Инвестициялар және Айналым қаражатын толықтыру | D175: Битумнан және соған ұқсас материалдардан бұйымдар өндіру жөніндегі қызметті кеңейту | E175: C-Өңдеуші өнеркәсіп | F175: 23995-Битумнан және соған ұқсас материалдардан бұйымдар жасау | G175: "ForteBank" АҚ | H175: 340000000 | I175: 183275399 | J175: РФ Ақмола облысы бойынша | K175: Көкшетау қ. | L175: Ақмола облысы | M175: Шағын кәсіпкерлік | N175: МҚ 1 шеңберінде кепілдендіру | O175: 45828.54597
A176: ЖШС | B176: KAZ SERVICES LTD | C176: Айналым қаражатын толықтыру | D176: Атбасар қаласында бөлшек сауданы ұйымдастыру | E176: G-Көтерме және бөлшек сауда; автомобильдер мен мотоциклдерді жөндеу | F176: 47521-Сауда алаңы 2000 шаршы метрден аспайтын сауда объектілері болып табылатын мамандандырылған дүкендерде аппараттық құралдарды, бояулар мен лактарды және әйнектерді бөлшек саудада сату | G176: "Еуразиялық банк" АҚ | H176: 70000000 | I176: 56200000 | J176: РФ Ақмола облысы бойынша | K176: Атбасар қ. | L176: Ақмола облысы | M176: Микро кәсіпкерлік | N176: МҚ 1 шеңберінде кепілдендіру | O176: 45833.38342
A177: ЖК | B177: РАМАЗАНОВА СӘУЛЕ АМАНТАЙҚЫЗЫ | C177: Инвестициялар | D177: Көкшетау қаласындағы сауда-ойын-сауық орталығының қызметін кеңейту | E177: R-Өнер, ойын-сауық және демалыс | F177: 93210-Ойын-сауық және тақырыптық парктердің қызметі | G177: "Қазақстан Халық Банкі" АҚ | H177: 160000000 | I177: 136000000 | J177: РФ Ақмола облысы бойынша | K177: Көкшетау қ. | L177: Ақмола облысы | M177: Шағын кәсіпкерлік | N177: МҚ 1 шеңберінде кепілдендіру | O177: 45833.38347
A178: ЖШС | B178: Квалитет Сервис | C178: Инвестициялар | D178: Ауыл және орман шаруашылығына арналған машиналар мен жабдықтарды жөндеу және техникалық қызмет көрсету жөніндегі қызметті кеңейту | E178: C-Өңдеуші өнеркәсіп | F178: 33123-Ауыл шаруашылығы және орман шаруашылығына арналған машиналар мен жабдықтарды жөндеу және техникалық қызмет көрсету | G178: "Bereke Bank" АҚ (еншілес банк Lesha Bank LLC (Public)) | H178: 40000000 | I178: 9500000 | J178: РФ Ақмола облысы бойынша | K178: Көкшетау қ. | L178: Ақмола облысы | M178: Шағын кәсіпкерлік | N178: МҚ 1 шеңберінде кепілдендіру | O178: 45833.48615
A179: ЖК | B179: Тудосов Александр Григорьевич | C179: Қайта қаржыландыру | D179: Көкшетау қаласында бөлшек сауда қызметін ұйымдастыру | E179: G-Көтерме және бөлшек сауда; автомобильдер мен мотоциклдерді жөндеу | F179: 47111-Сауда объектілері болып табылатын, сауда алаңы 2000 шаршы метрден аспайтын мамандандырылмаған дүкендерде негізінен тамақ өнімдерін, сусындар мен темекі өнімдерін бөлшек саудада сату. м | G179: "Банк ЦентрКредит" АҚ | H179: 61269000 | I179: 18500000 | J179: РФ Ақмола облысы бойынша | K179: Көкшетау қ. | L179: Ақмола облысы | M179: Шағын кәсіпкерлік | N179: МҚ 1 шеңберінде кепілдендіру | O179: 45841.43336
A180: ЖШС | B180: АРИОЛ | C180: Айналым қаражатын толықтыру | D180: Ауыл шаруашылығы жануарларына арналған дайын жемшөп өндіру үшін айналым қаражатын толықтыру | E180: C-Өңдеуші өнеркәсіп | F180: 10910-Ауыл шаруашылығы жануарларына арналған дайын азықтарды өндіру | G180: "ForteBank" АҚ | H180: 150000000 | I180: 127500000 | J180: РФ Ақмола облысы бойынша | K180: Көкшетау қ. | L180: Ақмола облысы | M180: Шағын кәсіпкерлік | N180: МҚ 1 шеңберінде кепілдендіру | O180: 45842.1786
A181: ЖШС | B181: Асыл Арман | C181: Инвестициялар | D181: Тауарларға арналған қаптамаларды өндіру жөніндегі қызметті кеңейту | E181: C-Өңдеуші өнеркәсіп | F181: 22220-Тауарларға арналған пластмасса қаптамалар өндірісі | G181: "Еуразиялық банк" АҚ | H181: 875000000 | I181: 743750000 | J181: РФ Ақмола облысы бойынша | K181: Көкшетау қ. | L181: Ақмола облысы | M181: Ірі кәсіпкерлік | N181: МҚ 1 шеңберінде кепілдендіру | O181: 45846.17711
A182: ЖК | B182: Мұратова Д.М. атынан Мұратова Диана Мұхтарқызы | C182: Инвестициялар | D182: Инвестициялар | E182: P-Білім беру | F182: 85100-Мектепке дейінгі білім беру | G182: "Банк ЦентрКредит" АҚ | H182: 75000000 | I182: 36000000 | J182: РФ Ақмола облысы бойынша | K182: Көкшетау қ. | L182: Ақмола облысы | M182: Микро кәсіпкерлік | N182: МҚ 1 шеңберінде кепілдендіру | O182: 45849.17032
A183: ЖШС | B183: CORN LOGISTICS | C183: Айналым қаражатын толықтыру | D183: Астықтың, тұқымның және мал азығының көтерме саудасын кеңейту үшін айналым капиталын толықтыру. | E183: G-Көтерме және бөлшек сауда; автомобильдер мен мотоциклдерді жөндеу | F183: 46211-Астықты, тұқымдарды және мал азығын көтерме саудада сату | G183: "ForteBank" АҚ | H183: 300000000 | I183: 249000000 | J183: РФ Ақмола облысы бойынша | K183: Көкшетау қ. | L183: Ақмола облысы | M183: Шағын кәсіпкерлік | N183: МҚ 1 шеңберінде кепілдендіру | O183: 45848.50568
A184: ЖК | B184: GENSH атынан Генш Эдуард Сергеевич | C184: Инвестициялар | D184: Тамақтандыру объектісін ашу үшін жабдықтар сатып алу және үй-жайларды жөндеу | E184: I-Тұру және тамақтану бойынша қызметтер көрсету | F184: 56101-Мейрамханалардың қызметі және жол бойындағы жолақта орналасқан объектілердің қызметін қоспағанда, тамақ өнімдерін жеткізу бойынша қызметтерді ұсыну | G184: "Банк ЦентрКредит" АҚ | H184: 12000000 | I184: 5880000 | J184: РФ Ақмола облысы бойынша | K184: Бурабай ауданы | L184: Ақмола облысы | M184: Микро кәсіпкерлік | N184: МҚ 1 шеңберінде кепілдендіру | O184: 45852.43336
A185: ЖШС | B185: ForestLand | C185: Инвестициялар | D185: Инвестициялар | E185: I-Тұру және тамақтану бойынша қызметтер көрсету | F185: 55200-Демалыс күндеріне және қысқа мерзімді тұрудың өзге де кезеңдеріне тұрғын үй беру | G185: "Банк ЦентрКредит" АҚ | H185: 60000000 | I185: 47233500 | J185: РФ Ақмола облысы бойынша | K185: Ақкөл ауданы | L185: Ақмола облысы | M185: Микро кәсіпкерлік | N185: МҚ 1 шеңберінде кепілдендіру | O185: 45856.22503
A186: ЖК | B186: Швецова Лидия Георгиевна тұлғасында агроқұрылыс | C186: Айналым қаражатын толықтыру | D186: Айналым қаражатын толықтыру | E186: C-Өңдеуші өнеркәсіп | F186: 28302-Ауыл шаруашылығы машиналарын жасау | G186: "Қазақстан Халық Банкі" АҚ | H186: 120000000 | I186: 86268400 | J186: РФ Ақмола облысы бойынша | K186: Көкшетау қ. | L186: Ақмола облысы | M186: Орта кәсіпкерлік | N186: МҚ 1 шеңберінде кепілдендіру | O186: 45856.45281
A187: ЖК | B187: GENSH атынан Генш Эдуард Сергеевич | C187: Айналым қаражатын толықтыру | D187: Тамақтандыру объектісі үшін айналым қаражатын толықтыру | E187: I-Тұру және тамақтану бойынша қызметтер көрсету | F187: 56101-Мейрамханалардың қызметі және жол бойындағы жолақта орналасқан объектілердің қызметін қоспағанда, тамақ өнімдерін жеткізу бойынша қызметтерді ұсыну | G187: "Банк ЦентрКредит" АҚ | H187: 3000000 | I187: 1470000 | J187: РФ Ақмола облысы бойынша | K187: Бурабай ауданы | L187: Ақмола облысы | M187: Микро кәсіпкерлік | N187: МҚ 1 шеңберінде кепілдендіру | O187: 45863.48
A188: ЖК | B188: Красоцкий Владимир Андреевичтің тұлғасындағы Vita-Avto | C188: Инвестициялар | D188: Көкшетау қ. автосервис қызметін ұйымдастыру: жабдықтарды салу және сатып алу. | E188: G-Көтерме және бөлшек сауда; автомобильдер мен мотоциклдерді жөндеу | F188: 45201-Жол бойындағы жолақта орналасқан техникалық қызмет көрсету станциялары жүргізетіндерді қоспағанда, автокөліктерге техникалық қызмет көрсету және жөндеу | G188: "Қазақстан Халық Банкі" АҚ | H188: 105000000 | I188: 73432100 | J188: РФ Ақмола облысы бойынша | K188: Көкшетау қ. | L188: Ақмола облысы | M188: Шағын кәсіпкерлік | N188: МҚ 1 шеңберінде кепілдендіру | O188: 45868.51328
A189: ЖК | B189: Волков Павел Николаевич | C189: Инвестициялар | D189: Жүктерді көліктік өңдеу саласындағы қызметті дамыту. | E189: Н-Тасымалдау және қоймалау | F189: 52240-Жүктерді көліктік өңдеу | G189: "Алатау қалалық банкі" АҚ | H189: 40000000 | I189: 22000000 | J189: РФ Ақмола облысы бойынша | K189: Степногорск қ. | L189: Ақмола облысы | M189: Микро кәсіпкерлік | N189: МҚ 1 шеңберінде кепілдендіру | O189: 45876.21462
A190: ЖК | B190: HellaGood Kokshetau атынан Абдрахманов Алдияр Ахметқалиұлы қатысты | C190: Инвестициялар | D190: Пошта және курьерлік қызмет саласындағы қызметті дамыту. | E190: Н-Тасымалдау және қоймалау | F190: 53200-Өзге де пошта және курьерлік қызмет | G190: "ForteBank" АҚ | H190: 15000000 | I190: 12750000 | J190: РФ Ақмола облысы бойынша | K190: Көкшетау қ. | L190: Ақмола облысы | M190: Микро кәсіпкерлік | N190: МҚ 1 шеңберінде кепілдендіру | O190: 45876.38003
A191: ЖК | B191: Абдуллаев Қанат Мұстафаұлы | C191: Инвестициялар | D191: Щучинск қ. демалыс аймағының қызметін кеңейту | E191: I-Тұру және тамақтану бойынша қызметтер көрсету | F191: 55101-Жол бойындағы жолақта орналасқан қонақүйлерді қоспағанда, мейрамханалары бар қонақүйлердің қызмет көрсетуі | G191: "ForteBank" АҚ | H191: 300000000 | I191: 236000000 | J191: РФ Ақмола облысы бойынша | K191: Бурабай ауданы | L191: Ақмола облысы | M191: Шағын кәсіпкерлік | N191: МҚ 1 шеңберінде кепілдендіру | O191: 45876.37934
A192: ЖШС | B192: Milk Project | C192: Айналым қаражатын толықтыру | D192: Айналым қаражатын толықтыру | E192: C-Өңдеуші өнеркәсіп | F192: 10511-Консервілеуді қоспағанда, сүтті қайта өңдеу және ірімшік өндіру | G192: "ForteBank" АҚ | H192: 1200000000 | I192: 188233000 | J192: РФ Ақмола облысы бойынша | K192: Зеренді ауданы | L192: Ақмола облысы | M192: Орта кәсіпкерлік | N192: МҚ 1 шеңберінде кепілдендіру | O192: 45889.18694
A193: ЖШС | B193: АРНАЙЫ ҚҰРЫЛЫС ХХ | C193: Инвестициялар | D193: Жүк автомобиль көлігі қызметі саласындағы қызметті кеңейту. | E193: Н-Тасымалдау және қоймалау | F193: 49410-Жүк автомобиль көлігінің қызметі | G193: "Нұрбанк" АҚ | H193: 77900000 | I193: 12300000 | J193: РФ Ақмола облысы бойынша | K193: Көкшетау қ. | L193: Ақмола облысы | M193: Шағын кәсіпкерлік | N193: МҚ 1 шеңберінде кепілдендіру | O193: 45894.42211
A194: ЖК | B194: Дембицкий Сергей Геннадьевич Дембицкий тұлғасында | C194: Айналым қаражатын толықтыру | D194: Сауда қызметін кеңейту | E194: G-Көтерме және бөлшек сауда; автомобильдер мен мотоциклдерді жөндеу | F194: 46909-Қандай да бір нақтылаусыз тауарлардың кең ассортиментін көтерме саудада сату | G194: "Еуразиялық банк" АҚ | H194: 70000000 | I194: 59500000 | J194: РФ Ақмола облысы бойынша | K194: Бурабай ауданы | L194: Ақмола облысы | M194: Орта кәсіпкерлік | N194: МҚ 1 шеңберінде кепілдендіру | O194: 45891.39134
A195: ЖК | B195: Бексұлтан атынан Джанахметова Луиза Сәрсенқұлқызы қатысты | C195: Айналым қаражатын толықтыру | D195: Айналым қаражатын толықтыру | E195: C-Өңдеуші өнеркәсіп | F195: 13201-Мақта-мата маталарын өндіру | G195: "Банк ЦентрКредит" АҚ | H195: 3000000 | I195: 2550000 | J195: РФ Ақмола облысы бойынша | K195: Целиноград ауданы | L195: Ақмола облысы | M195: Микро кәсіпкерлік | N195: МҚ 1 шеңберінде кепілдендіру | O195: 45896.19735
A196: ЖК | B196: Бексұлтан атынан Джанахметова Луиза Сәрсенқұлқызы қатысты | C196: Инвестициялар | D196: Инвестициялар (жабдықтарды сатып алу) | E196: C-Өңдеуші өнеркәсіп | F196: 13201-Мақта-мата маталарын өндіру | G196: "Банк ЦентрКредит" АҚ | H196: 97000000 | I196: 82300000 | J196: РФ Ақмола облысы бойынша | K196: Целиноград ауданы | L196: Ақмола облысы | M196: Микро кәсіпкерлік | N196: МҚ 1 шеңберінде кепілдендіру | O196: 45896.19727
A197: ЖК | B197: Парфенов Евгений Федорович | C197: Инвестициялар | D197: Инвестициялар | E197: Н-Тасымалдау және қоймалау | F197: 49410-Жүк автомобиль көлігінің қызметі | G197: "Банк ЦентрКредит" АҚ | H197: 20000000 | I197: 9400000 | J197: РФ Ақмола облысы бойынша | K197: Көкшетау қ. | L197: Ақмола облысы | M197: Шағын кәсіпкерлік | N197: МҚ 1 шеңберінде кепілдендіру | O197: 45896.49391
A198: ЖШС | B198: АСК Авторесурстар | C198: Айналым қаражатын толықтыру | D198: Айналым қаражатын толықтыру | E198: G-Көтерме және бөлшек сауда; автомобильдер мен мотоциклдерді жөндеу | F198: 46610-Ауылшаруашылық техникаларын, жабдықтарын, бөлшектерін және олардың керек-жарақтарын көтерме саудада сату | G198: "Алатау қалалық банкі" АҚ | H198: 20000000 | I198: 17000000 | J198: РФ Ақмола облысы бойынша | K198: Көкшетау қ. | L198: Ақмола облысы | M198: Шағын кәсіпкерлік | N198: МҚ 1 шеңберінде кепілдендіру | O198: 45897.54455
A199: ЖШС | B199: HitPark | C199: Инвестициялар | D199: Инвестициялар | E199: L-Жылжымайтын мүлікпен жасалатын операциялар | F199: 68208-Жалға алу (қосалқы жалдау) және меншікті немесе жалға алынған қоймаларды басқару | G199: "ForteBank" АҚ | H199: 100000000 | I199: 82500000 | J199: РФ Ақмола облысы бойынша | K199: Ақтөбе қ. | L199: Ақтөбе облысы | M199: Микро кәсіпкерлік | N199: МҚ 1 шеңберінде кепілдендіру | O199: 45898.49101
A200: ЖК | B200: АНГЕЛИНА атынан Кушнир Анна Владимировна | C200: Инвестициялар | D200: Сауда объектілері болып табылатын, сауда алаңы 2000 шаршы метрден аспайтын мамандандырылған дүкендерде трикотаж және шұлық бұйымдарының бөлшек саудасы саласындағы қызметті дамыту. м | E200: G-Көтерме және бөлшек сауда; автомобильдер мен мотоциклдерді жөндеу | F200: 47711-Сауда объектілері болып табылатын, сауда алаңы 2000 шаршы метрден аспайтын мамандандырылған дүкендерде трикотаж және шұлық бұйымдарының бөлшек саудасы. м | G200: "ForteBank" АҚ | H200: 60000000 | I200: 30685255 | J200: РФ Ақмола облысы бойынша | K200: Көкшетау қ. | L200: Ақмола облысы | M200: Шағын кәсіпкерлік | N200: МҚ 1 шеңберінде кепілдендіру | O200: 45902.42087
... 3436 more rows
